Cogmind - Beta 10.2 @@@ ROGUE MODE // 2021.01.03 @ 21:40:46 Player: MTF Result: Destroyed Tau Ceti IV! Performance ------------- Evolutions (9) 4500 Regions Visited (39) 7800 Robots Destroyed (372) 1860 Value Destroyed (17840) 17840 Prototype IDs (133) 2660 Alien Tech Used (16) 3200 Bonus (41574) 41574 TOTAL SCORE: 79434 Bonus ------- High Alert Combat Kills 2899 Follower Combat Kills 211 Aligned with FarCom 300 Met Data Miner 300 Met Imprinter 300 Destroyed Z-Imprinter 1000 Exposed GOLEM Chamber 500 Met Zhirov 300 Met Warlord at Base 500 MAIN.C Attacked Warlord 500 Warlord Defense Kill 2734 Met Warlord at Research 2000 Scanned by Researcher 500 Destroyed MAIN.C Guards 500 Met MAIN.C 5000 Destroyed MAIN.C Shell 5000 Destroyed MAIN.C 10000 Met Warlord at Command 2000 Met Architect 300 Started Test 138-B 500 Started Test 138-C 8000 Destroyed A8 300 Destroyed A6 400 Destroyed A5 500 Destroyed A4 700 Destroyed A3 800 Destroyed A2 1000 Win 3000 Friendly Fire -8470 Cogmind --------- Core Integrity 675/1600 Matter 300/300 Energy 1484/1490 System Corruption 0% Temperature Cool (6) Movement Flying (27) Location Subspace Parts ------- > --- POWER (1) -------- Zero-point Reactor > --- PROPULSION (2) --- Improved Diametric Drive Improved Diametric Drive > --- UTILITY (20) ----- Experimental Power Amplifier Large Storage Unit Large Storage Unit Experimental Energy Well Dimensional Manipulator Dimensional Manipulator Dimensional Manipulator Spectral Analyzer Advanced Melee Analysis Suite Experimental Melee Analysis Suite Experimental Melee Analysis Suite Advanced Target Analyzer Advanced Armor Integrity Analyzer Femtoactuators Advanced Reaction Control System Experimental Phase Shifter Improved Weapon Shielding Centrium Linked Plating Experimental Powered Armor Experimental Force Field > --- WEAPON (2) ------- Sigix Broadsword > --- INVENTORY (16) --- Zero-point Reactor Improved Diametric Drive Experimental Energy Well (1000) Experimental Energy Well (1000) Femtoactuators Experimental Phase Shifter Experimental Powered Armor Experimental Powered Armor Experimental Powered Armor Experimental Focal Shield AEGIS Remote Shield High-powered Transdimensional Reconstructor Matter Drive Hypervelocity Multirail Sigix Corpse Peak State ------------ > --- POWER ------------ Zero-point Reactor > --- PROPULSION ------- Improved Diametric Drive Improved Diametric Drive > --- UTILITY ---------- Experimental Power Amplifier Large Storage Unit Large Storage Unit Experimental Energy Well Dimensional Manipulator Dimensional Manipulator Dimensional Manipulator Spectral Analyzer Advanced Melee Analysis Suite Experimental Melee Analysis Suite Experimental Melee Analysis Suite Advanced Target Analyzer Advanced Armor Integrity Analyzer Femtoactuators Advanced Reaction Control System Experimental Phase Shifter Experimental Focal Shield Experimental Force Field Matter Drive > --- WEAPON ----------- Sigix Broadsword > --- INVENTORY -------- Zero-point Reactor Improved Diametric Drive Experimental Energy Well Experimental Energy Well Femtoactuators Experimental Phase Shifter Improved Utility Shielding Improved Weapon Shielding Centrium Linked Plating Centrium Linked Plating Experimental Powered Armor Experimental Powered Armor Experimental Powered Armor AEGIS Remote Shield High-powered Transdimensional Reconstructor Hypervelocity Multirail [Rating: 241] Favorites ----------- Power Zionite Light DM Reactor Engine Light Ion Engine Power Core Reinforced Fission Core Reactor Zionite Light DM Reactor Propulsion Improved Diametric Drive Treads Light Treads Leg Aluminum Leg Flight Unit Improved Diametric Drive Utility Large Storage Unit Device Dimensional Manipulator Storage Large Storage Unit Processor Experimental Melee Analysis Suite Hackware Hacking Suite Protection Heavy Regenerative Plating Artifact Matter Drive Weapon Sigix Broadsword Energy Gun Improved EM Shotgun Energy Cannon Improved EM Pulse Cannon Ballistic Gun Assault Rifle Ballistic Cannon Improved Light Cannon Launcher Rocket Launcher Special Weapon Remote Datajack Slashing Weapon Sigix Broadsword Piercing Weapon CR-A16's Pointy Stick Build | -11 -10 -10 -10 -9 -8 -8 -7 -7 -7 -7 -7 -6 -6 -6 -6 -6 -6 -6 -5 -5 -5 -5 -5 -5 -5 -4 -4 -4 -4 -4 -3 -3 -3 -3 -2 -2 -1 -1 -1 ------- Run | Scr Mat Min Exi Min Mat Sto Fac Low Low Zio Dee Pro Fac Was Fac Low Low Dat Pro Fac Was Fac Upp Upp War Pro Fac Upp Upp Zhi Pro Res Qua Sec Res Tes Acc Com Ac0 Slots Evolved 18 | . . . . . 4 . 2 . . . . . 2 . . . . . . 2 . . . . . . 2 . . . . 2 . . 2 . 2 . . Power . | . . . . . . . . . . . . . . . . . . . . . . . . . . . . . . . . . . . . . . . . Propulsion . | . . . . . . . . . . . . . . . . . . . . . . . . . . . . . . . . . . . . . . . . Utility 18 | . . . . . 4 . 2 . . . . . 2 . . . . . . 2 . . . . . . 2 . . . . 2 . . 2 . 2 . . Weapon . | . . . . . . . . . . . . . . . . . . . . . . . . . . . . . . . . . . . . . . . . Parts Attached 635 | 2 33 2 29 . 37 30 40 4 2 6 57 1 17 1 5 7 . 1 11 8 . 7 6 . 22 1 22 . . 13 . 12 18 34 17 34 28 74 54 Power 13 | . . . 4 . . . 1 . . . 3 . . . . . . . 1 . . . . . . . 1 . . . . . . 1 . . 1 1 . Engine 2 | . . . 1 . . . 1 . . . . . . . . . . . . . . . . . . . . . . . . . . . . . . . . Core 3 | . . . 3 . . . . . . . . . . . . . . . . . . . . . . . . . . . . . . . . . . . . Reactor 8 | . . . . . . . . . . . 3 . . . . . . . 1 . . . . . . . 1 . . . . . . 1 . . 1 1 . Propulsion 37 | 2 1 . 4 . 7 6 4 . 1 1 . . 1 . 1 . . . . 2 . . . . 2 . . . . 2 . . . 2 . 1 . . . Treads 18 | 2 1 . 4 . 6 5 . . . . . . . . . . . . . . . . . . . . . . . . . . . . . . . . . Leg . | . . . . . . . . . . . . . . . . . . . . . . . . . . . . . . . . . . . . . . . . Wheel . | . . . . . . . . . . . . . . . . . . . . . . . . . . . . . . . . . . . . . . . . Hover . | . . . . . . . . . . . . . . . . . . . . . . . . . . . . . . . . . . . . . . . . Flight 19 | . . . . . 1 1 4 . 1 1 . . 1 . 1 . . . . 2 . . . . 2 . . . . 2 . . . 2 . 1 . . . Utility 325 | . 2 . 9 . 4 12 23 3 1 4 27 1 5 1 2 4 . . 8 5 . 1 . . 6 . 11 . . 11 . 7 13 16 8 20 16 57 48 Device 143 | . . . 3 . . 2 11 2 1 . 14 1 2 . 1 3 . . 6 1 . 1 . . 3 . 4 . . 6 . 3 5 11 2 11 7 31 12 Storage 34 | . 2 . 3 . 1 5 2 . . . 3 . 1 1 . 1 . . . . . . . . . . . . . 2 . . 1 2 2 1 2 5 . Processor 23 | . . . 1 . . . 3 . . 3 . . . . . . . . . 2 . . . . 1 . . . . . . . . . 3 . 1 9 . Hackware 22 | . . . . . . . 3 . . . 2 . 1 . . . . . . 2 . . . . . . 4 . . . . 2 1 . . 3 3 1 . Protection 89 | . . . 2 . 3 5 4 1 . 1 8 . 1 . 1 . . . 2 . . . . . 2 . 3 . . 3 . 2 6 3 1 2 2 8 29 Artifact 14 | . . . . . . . . . . . . . . . . . . . . . . . . . . . . . . . . . . . . 3 1 3 7 Weapon 260 | . 30 2 12 . 26 12 12 1 . 1 27 . 11 . 2 3 . 1 2 1 . 6 6 . 14 1 10 . . . . 5 5 15 9 13 11 16 6 Energy Gun 33 | . 5 . 1 . 9 1 . . . . 14 . . . . . . . . . . . . . . . . . . . . . . 1 . 1 . 1 . Energy Cannon 39 | . . . . . 2 4 . . . . . . 5 . 1 1 . 1 . . . 3 2 . . . . . . . . 2 3 6 3 2 1 2 1 Ballistic Gun 54 | . 9 1 7 . 10 5 . 1 . . 1 . 1 . . . . . . . . . . . 2 . 5 . . . . . . . . 3 4 3 2 Ballistic Cannon 12 | . 10 . . . . . . . . . . . . . . . . . . . . . . . . . . . . . . . . . . . . 2 . Launcher 48 | . 6 1 4 . 5 2 3 . . . 8 . . . . 1 . . 1 . . . 1 . 7 1 1 . . . . 1 . . 2 1 1 2 . Special Weapon 1 | . . . . . . . . . . . . . . . . . . . . 1 . . . . . . . . . . . . . . . . . . . Impact Weapon . | . . . . . . . . . . . . . . . . . . . . . . . . . . . . . . . . . . . . . . . . Slashing Weapon 43 | . . . . . . . 9 . . . . . . . . . . . . . . . . . . . . . . . . . 2 8 4 6 5 6 3 Piercing Weapon 30 | . . . . . . . . . . 1 4 . 5 . 1 1 . . 1 . . 3 3 . 5 . 4 . . . . 2 . . . . . . . Special Melee Weapon . | . . . . . . . . . . . . . . . . . . . . . . . . . . . . . . . . . . . . . . . . Unidentified Prototypes 65 | . . . 4 . 2 5 1 . . . 10 . . . . . . . 2 2 . . . . 6 . 1 . . 4 . . 2 6 2 5 . 9 4 Parts Lost 25 | . . . 3 . 1 . . . . . 2 . . . 1 . . 1 . 1 . . . . . 1 2 . . . . 2 . 1 1 3 4 . 2 Power 3 | . . . 1 . . . . . . . . . . . . . . . . . . . . . . . 1 . . . . . . 1 . . . . . Propulsion 2 | . . . 2 . . . . . . . . . . . . . . . . . . . . . . . . . . . . . . . . . . . . Utility 17 | . . . . . 1 . . . . . 2 . . . 1 . . . . 1 . . . . . . 1 . . . . 1 . . 1 3 4 . 2 Weapon 3 | . . . . . . . . . . . . . . . . . . 1 . . . . . . . 1 . . . . . 1 . . . . . . . Highest Loss Streak 3 | . . . 3 . 1 . . . . . 1 . . . 1 . . 1 . 1 . . . . . 1 1 . . . . 1 . 1 1 3 1 . 1 Average Slot Usage (%) 89 | . 99 100 83 85 80 85 88 96 100 100 88 100 95 100 99 93 100 98 90 94 100 94 94 94 94 89 91 94 94 90 94 93 94 90 90 85 86 91 95 Engine 2 | . 14 14 6 . . . 7 7 7 7 . . . . . . . . . . . . . . . . . . . . . . . . . . . . . Core 2 | . . . 7 14 9 9 . . . . . . . . . . . . . . . . . . . . . . . . . . . . . . . . . Reactor 2 | . . . . . . . . . . . 6 7 6 6 6 6 6 6 5 5 5 5 5 5 5 5 5 5 5 5 5 4 4 4 4 2 2 4 4 Treads 7 | . 27 28 27 28 18 17 . . . . . . . . . . . . . . . . . . . . . . . . . . . . . . . . . Flight 7 | . . . . . . . 15 15 15 15 15 15 13 13 13 13 13 13 13 10 11 11 11 11 11 11 10 10 10 9 10 9 9 9 8 8 8 8 8 Device 16 | . . . . . . 8 14 11 15 9 16 29 26 26 26 25 26 26 28 28 29 28 29 29 29 29 28 26 26 25 36 29 30 30 28 20 22 24 30 Storage 11 | . 27 28 12 14 17 24 7 7 7 7 7 7 6 13 6 13 13 13 8 5 5 5 5 5 5 5 5 5 5 4 5 4 5 6 13 13 12 11 12 Processor 10 | . . . 2 . . . 11 15 15 24 24 7 6 6 6 6 6 6 6 7 11 11 11 11 11 11 10 10 10 8 5 4 4 4 8 5 5 27 25 Hackware 9 | . . . . . . . 22 23 23 13 . 15 19 20 19 13 13 13 13 19 17 17 17 17 17 17 21 26 26 21 15 21 19 23 18 25 27 4 . Protection 6 | . . . 2 . 17 9 3 3 . 4 7 . 5 . 5 6 6 6 6 5 5 5 5 5 4 5 4 5 5 5 10 14 14 4 4 3 4 8 11 Energy Gun 1 | . 8 . . . 9 . . . . . 1 . . . . . . . . . . . . . . . . . . . . . . . . . . . . Ballistic Gun 4 | . 8 14 19 14 6 10 . 3 7 7 1 . . 6 6 . . . . . . . . . 1 . 1 . . . . . . . . . . . . Launcher 1 | . 5 14 4 14 . . . . . . 1 7 2 . . 1 . . . . . . . . . . . . . . . . . . . . . . . Slashing Weapon 1 | . . . . . . . 4 7 7 . . . . . . . . . . . . . . . . . . . . . . . 1 3 3 3 3 3 3 Piercing Weapon 1 | . . . . . . . . . . 6 2 7 5 6 5 6 13 10 5 5 5 4 4 5 2 . 3 5 5 5 5 2 . . . . . . . Naked Turns . | . . . . . . . . . . . . . . . . . . . . . . . . . . . . . . . . . . . . . . . . Heaviest Build 227 | 11 41 40 111 107 203 227 28 23 20 23 35 33 41 39 46 48 44 47 45 48 48 51 45 45 49 42 52 47 47 54 54 62 66 72 100 112 106 108 101 Greatest Support 103 | 40 40 40 40 40 44 44 24 25 25 25 35 35 50 48 48 48 48 48 48 49 48 48 48 48 54 48 57 48 48 59 59 66 78 90 90 103 103 103 103 Greatest Overweight (x) 7 | . 1 . 4 2 4 5 1 . . 1 1 . 1 . . . . . 2 . . 1 . . 1 . 1 1 1 1 . . 1 . 1 2 1 7 . Average Overweight (x) . | . . . 1 2 3 3 . . . . . . . . . . . . . . . . . . . . . . . . . . . . . . . . . Largest Inventory Capacity 56 | 6 16 16 24 24 44 56 42 8 8 8 8 8 10 10 10 10 10 10 10 10 10 10 10 10 10 10 10 10 10 10 10 10 10 16 22 22 28 22 16 Average Capacity 18 | 6 15 16 20 24 43 39 8 8 8 8 8 8 9 10 10 10 10 10 10 10 10 10 10 10 10 10 10 10 10 6 10 10 10 13 21 22 22 16 16 Most Carried 44 | 6 16 16 24 24 44 44 37 8 8 8 8 8 10 10 10 10 9 10 10 10 10 10 10 10 10 10 10 10 10 10 10 10 10 16 22 22 22 22 16 Average Carried 16 | 5 14 15 16 24 40 38 8 8 7 7 7 7 8 10 9 9 9 8 9 9 10 9 9 10 9 9 9 10 10 6 10 9 9 11 19 19 19 16 15 Final Capacity 44 | 6 16 16 24 24 44 38 8 8 8 8 8 8 10 10 10 10 10 10 10 10 10 10 10 10 10 10 10 10 10 10 10 10 10 16 22 22 22 16 16 Final Carried 44 | 4 16 16 24 24 44 37 8 8 8 8 8 8 10 10 10 9 9 10 10 10 10 10 10 10 10 10 10 10 10 10 10 10 10 15 22 21 22 15 16 Class Distribution -------------------- 24% | Hauler-Mutant 14% | Wizard-Sprinter 10% | Mutant 9% | Scavenger-Sprinter 8% | Wizard-Scout 7% | Wizard-Mutant 6% | Hacker-Mutant 4% | Scavenger-Gladiator 3% | Hacker-Scout 3% | Hacker-Sprinter Dominant Class ---------------- Mutant | -10/Materials Mutant | -10/Mines Hauler-Mutant | -10/Exiles Hauler-Mutant | -9/Mines Hauler-Mutant | -8/Materials Hauler-Mutant | -8/Storage Hacker-Scout | -7/Factory Hacker-Mutant | -7/Lower Caves Hacker-Scout | -7/Lower Caves Hacker-Mutant | -7/Zion Mutant | -7/Deep Caves Hacker-Mutant | -6/Proximity Caves Hacker-Mutant | -6/Factory Hacker-Mutant | -6/Waste Hacker-Mutant | -6/Factory Machinist-Mutant | -6/Lower Caves Machinist-Mutant | -6/Lower Caves Machinist-Mutant | -6/Data Miner Hacker-Mutant | -5/Proximity Caves Wizard-Mutant | -5/Factory Wizard-Scout | -5/Waste Wizard-Scout | -5/Factory Wizard-Scout | -5/Upper Caves Wizard-Scout | -5/Upper Caves Wizard-Scout | -5/Warlord Wizard-Scout | -4/Proximity Caves Wizard-Scout | -4/Factory Wizard-Assassin | -4/Upper Caves Wizard-Scout | -4/Upper Caves Wizard-Mutant | -4/Zhirov Wizard-Sprinter | -3/Proximity Caves Wizard-Sprinter | -3/Research Wizard-Sprinter | -3/Quarantine Wizard-Sprinter | -3/Section 7 Wizard-Sprinter | -2/Research Wizard-Mutant | -2/Testing Wizard-Sprinter | -1/Access Scavenger-Gladiator | -1/Command Scavenger-Sprinter | -1/Access_0 Resources | -11 -10 -10 -10 -9 -8 -8 -7 -7 -7 -7 -7 -6 -6 -6 -6 -6 -6 -6 -5 -5 -5 -5 -5 -5 -5 -4 -4 -4 -4 -4 -3 -3 -3 -3 -2 -2 -1 -1 -1 ----------- Run | Scr Mat Min Exi Min Mat Sto Fac Low Low Zio Dee Pro Fac Was Fac Low Low Dat Pro Fac Was Fac Upp Upp War Pro Fac Upp Upp Zhi Pro Res Qua Sec Res Tes Acc Com Ac0 Matter Collected 11784 | 256 744 2 698 . 843 488 346 100 42 39 813 . 28 . 197 35 . . 119 304 . 85 88 . 860 . 362 97 38 318 189 457 325 711 610 528 472 848 742 Remotely . | . . . . . . . . . . . . . . . . . . . . . . . . . . . . . . . . . . . . . . . . Salvage Created 20568 | 74 569 10 520 . 2008 1383 271 . 43 . 393 . 28 . 244 55 . 22 214 673 . 211 219 . 848 43 445 . . 318 211 93 286 770 713 1325 1303 3188 4088 Parts 1012 | 2 38 4 56 . 103 66 17 . 1 . 37 . 4 . 9 1 . 4 6 22 . 8 7 . 41 5 33 . . 1 5 13 9 36 30 62 78 98 216 Haulers Intercepted 30 | . 2 . . . 6 4 1 . . . . . . . 2 . . . 1 2 . 2 . . . . 2 . . . . 1 1 2 3 . 1 . . Recyclers Shooed 10 | . 1 . . . 4 . 1 . . . . . . . . . . . . 3 . . . . . . . . . . . . . . . . . 1 . Parts Field Recycled . | . . . . . . . . . . . . . . . . . . . . . . . . . . . . . . . . . . . . . . . . Retrieved Matter . | . . . . . . . . . . . . . . . . . . . . . . . . . . . . . . . . . . . . . . . . Parts Self-Destructed 118 | . . . . . . . . . . . . 1 . . . 6 . . 2 . . . 4 . 101 2 . . . . 2 . . . . . . . . Prevented 10 | . . . . . . . . 4 . . . 2 . . . . . . . . . . . . 4 . . . . . . . . . . . . . . Kills | -11 -10 -10 -10 -9 -8 -8 -7 -7 -7 -7 -7 -6 -6 -6 -6 -6 -6 -6 -5 -5 -5 -5 -5 -5 -5 -4 -4 -4 -4 -4 -3 -3 -3 -3 -2 -2 -1 -1 -1 ------- Run | Scr Mat Min Exi Min Mat Sto Fac Low Low Zio Dee Pro Fac Was Fac Low Low Dat Pro Fac Was Fac Upp Upp War Pro Fac Upp Upp Zhi Pro Res Qua Sec Res Tes Acc Com Ac0 Combat Hostiles Destroyed 248 | . 13 3 7 . 36 18 1 . . . 7 . . . . 1 . . 5 . . . 2 . 28 3 5 . . . . 3 . 4 11 16 18 24 43 Melee 82 | . . . 1 . . . 1 . . . . . . . . . . . 1 . . . . . 2 . . . . . . . . 2 3 13 . 19 40 Guns 54 | . 1 . 2 . 17 12 . . . . 2 . . . . . . . . . . . . . 2 . . . . . . . . . . 1 14 1 2 Cannons 8 | . 2 . . . 1 4 . . . . . . . . . . . . . . . . . . . . . . . . . . . . 1 . . . . AOE 95 | . 10 3 4 . 18 . . . . . 5 . . . . 1 . . 4 . . . 2 . 24 3 5 . . . . 3 . . 7 2 4 . . Classes Destroyed 27 | 1 6 . 3 . 6 . 1 . 1 . . . . . . . . . . . . . 1 . 5 . . . . . . . . . 1 2 . . . Worker 17 | . . . . . 1 . . . . . . . . . . . . . . . . . . . . . 2 . . . . 4 1 . 1 4 . 4 . Builder 14 | . 2 . . . 3 1 1 . . . . . . . . . . . . . . . . . . . 3 . . . . . . 1 . . 3 . . Tunneler 1 | . . . . . 1 . . . . . . . . . . . . . . . . . . . . . . . . . . . . . . . . . . Hauler 30 | . 2 . . . 6 4 1 . . . . . . . 2 . . . 1 2 . 2 . . . . 2 . . . . 1 1 2 3 . 1 . . Recycler 14 | 1 1 . . . 2 1 1 . . . . . . . . . . . . 3 . . . . . . . . . . . . 2 1 . 1 . 1 . Minesweeper 1 | . . . . . . . . . . . . . . . . . . . . . . . 1 . . . . . . . . . . . . . . . . Mechanic 3 | . . . . . 2 . . . . . . . . . . . . . . . . . . . . . . . . . . . . . . 1 . . . Operator 10 | . 2 . . . 1 2 1 . . . . . . . . . . . . 2 . . . . . . . . . . . . 1 . . . . 1 . Turret 1 | . . . 1 . . . . . . . . . . . . . . . . . . . . . . . . . . . . . . . . . . . . Watcher 29 | . 3 . . . 5 1 2 . . . . . 1 . 2 . . . . 2 . 1 . . . . 1 . . . . . 3 1 1 1 2 3 . Swarmer 54 | . 6 3 . . 9 . . . . . . . . . . . . . . . . . 1 . 7 3 5 . . . . 3 . 2 5 . 5 5 . Saboteur 4 | . . . . . . . . . . . . . . . . . . . . . . . . . 4 . . . . . . . . . . . . . . Grunt 63 | . 7 . . . 14 9 . . . . . . . . . . . . 5 . . . 1 . 8 . . . . . . . . . . 13 2 4 . Brawler 2 | . . . . . 1 . . . . . . . . . . 1 . . . . . . . . . . . . . . . . . . . . . . . Duelist 2 | . . . . . . . . . . . . . . . . . . . . . . . . . . . . . . . . . . . . 1 . 1 . Protector 1 | . . . . . . . . . . . . . . . . . . . . . . . . . 1 . . . . . . . . . . . . . . Researcher 2 | . . . . . . . . . . . . . . . . . . . . . . . . . . . . . . . . . . . . 2 . . . Sentry 23 | . . . . . 9 7 . . . . . . . . . . . . . . . . . . . . . . . . . . . 1 3 . . 3 . Specialist 1 | . . . . . . . . . . . . . . . . . . . . . . . . . 1 . . . . . . . . . . . . . . Hunter 13 | . . . . . 3 2 . . . . . . . . . . . . . . . . . . 1 . . . . . . . . . 1 . 4 2 . Programmer 19 | . . . . . . . 1 . . . . . . . . . . . . . . . . . 4 . . . . . . . . . . 2 7 5 . Behemoth 1 | . . . . . . . . . . . . . . . . . . . . . . . . . 1 . . . . . . . . . . . . . . S7 Guard 1 | . . . . . . . . . . . . . . . . . . . . . . . . . . . . . . . . . . 1 . . . . . M Guard 1 | . . . . . . . . . . . . . . . . . . . . . . . . . . . . . . . . . . . . . . 1 . Enhanced Grunt 25 | . . . . . . . . . . . 1 . . . . . . . . . . . . . . . . . . . . . . . . . . . 24 Enhanced Sentry 6 | . . . . . . . . . . . . . . . . . . . . . . . . . . . . . . . . . . . . . . . 6 Enhanced Hunter 7 | . . . . . . . . . . . . . . . . . . . . . . . . . . . . . . . . . . . . . . . 7 Striker 2 | . . . . . . . . . . . . . . . . . . . . . . . . . 1 . . . . . . . . . 1 . . . . Executioner 1 | . . . . . . . . . . . . . . . . . . . . . . . . . . . . . . . . . . . 1 . . . . Zionite 8 | . . . 8 . . . . . . . . . . . . . . . . . . . . . . . . . . . . . . . . . . . . Z-Technician 5 | . . . . . . . . . . . 5 . . . . . . . . . . . . . . . . . . . . . . . . . . . . Decomposer 2 | . . . . . . . . . . . . . . . . . . . . . . . 2 . . . . . . . . . . . . . . . . Packrat 1 | . . . . . . . . . . . . . . . . . . . . . . . 1 . . . . . . . . . . . . . . . . Samaritan 1 | . . . . . . . . . 1 . . . . . . . . . . . . . . . . . . . . . . . . . . . . . . Assembled 12 | . . . 6 . . . . . . . 6 . . . . . . . . . . . . . . . . . . . . . . . . . . . . Wasp 1 | . . . . . . . . . . . . . . . . . . . . . . . . . . . . . . . . . . . . . . 1 . Thug 1 | . . . . . . . . . . . . . . . . . . . . . . . . . 1 . . . . . . . . . . . . . . Savage 1 | . . . . . . . . . . . 1 . . . . . . . . . . . . . . . . . . . . . . . . . . . . Best Kill Streak 12 | 1 9 3 6 . 12 7 2 . . . 5 . 1 . 2 1 . 1 4 2 . 1 2 . 9 12 10 . . . . 5 3 3 5 5 8 5 6 Combat Bots Only 12 | . 6 3 6 . 6 6 1 . . . 4 . . . . 1 . . 4 . . . 2 . 9 12 5 . . . . 3 . 2 4 2 7 5 6 Max Kills in Single Turn 10 | 1 4 2 1 . 3 2 1 . 1 . 3 . 1 . 1 1 . 1 1 1 . 1 2 . 3 3 10 . . . . 3 1 1 3 2 4 1 1 Gunslinging . | . . . . . . . . . . . . . . . . . . . . . . . . . . . . . . . . . . . . . . . . Exploded 5 | . 3 2 1 . 3 . . . . . 3 . . . . 1 . . 1 . . . 1 . 3 3 5 . . . . 2 . . 3 1 4 . . Melee 1 | . . . 1 . . . 1 . . . . . . . . . . . 1 . . . . . 1 . . . . . . . . 1 1 1 . 1 1 Uniques/NPCs Destroyed 14 | . . . 4 . . . . . . . 1 . . . . . . 1 . . . . . . . . . . . . . . . . . . . 2 6 8R-AWN (-10/Exiles) EX-DEC (-10/Exiles) EX-HEX (-10/Exiles) EX-BIN (-10/Exiles) Z-Imprinter (-7/Deep Caves) Data Miner (-6/Data Miner) MAIN.C Shell (-1/Command) MAIN.C (-1/Command) A8 (-1/Access_0) A6 (-1/Access_0) A5 (-1/Access_0) A4 (-1/Access_0) A3 (-1/Access_0) A2 (-1/Access_0) Combat | -11 -10 -10 -10 -9 -8 -8 -7 -7 -7 -7 -7 -6 -6 -6 -6 -6 -6 -6 -5 -5 -5 -5 -5 -5 -5 -4 -4 -4 -4 -4 -3 -3 -3 -3 -2 -2 -1 -1 -1 -------- Run | Scr Mat Min Exi Min Mat Sto Fac Low Low Zio Dee Pro Fac Was Fac Low Low Dat Pro Fac Was Fac Upp Upp War Pro Fac Upp Upp Zhi Pro Res Qua Sec Res Tes Acc Com Ac0 Damage Taken 16662 | . 154 48 999 100 1653 912 223 . . . 349 85 38 . 117 191 . 190 136 54 . 75 42 49 411 99 818 . 46 . . 286 93 1081 402 1317 1523 1234 3937 Core 1940 | . 11 10 142 . 154 81 56 . . . 91 37 . . 8 51 . . . . . 24 18 . 60 . 116 . . . . . 22 159 79 116 169 85 451 Absorbed by Shields 6460 | . . . . . . . . . . . . . . . . . . . . . . . . . . . . . . . . . . . . 890 838 711 4021 Core Remaining (%) 75 | 100 . . . 34 . 57 . . . . . 73 . . . . . . 93 . . . . . . 89 . . . . 89 . . 94 . 86 . . 42 Volleys Fired 622 | 6 45 2 25 . 107 54 4 . . . 45 . 16 . 1 4 . 1 7 1 . 6 6 . 74 1 23 . . . . 9 56 20 11 13 36 19 30 Largest 2 | 2 2 1 2 . 2 2 1 . . . 2 . 1 . 1 1 . 1 1 1 . 1 1 . 1 1 1 . . . . 1 1 1 1 1 1 1 1 Hottest 138 | 40 79 33 40 . 138 138 39 . . . 73 . 90 . 90 90 . 90 39 30 . 98 98 . 39 39 49 . . . . 105 105 105 120 120 120 94 94 Shots Fired 947 | 12 81 2 132 . 205 123 4 . . . 53 . 16 . 2 4 . 1 7 1 . 6 6 . 74 1 23 . . . . 9 56 20 11 13 36 19 30 Gun 633 | 12 53 . 118 . 176 90 . . . . 41 . . . 1 . . . . . . . . . 44 . 22 . . . . . . 1 . 8 34 6 27 Cannon 193 | . 22 . . . 6 33 . . . . . . 16 . 1 2 . 1 . . . 6 4 . . . . . . . . 7 56 19 5 3 1 8 3 Launcher 120 | . 6 2 14 . 23 . 4 . . . 12 . . . . 2 . . 7 . . . 2 . 30 1 1 . . . . 2 . . 6 2 1 5 . Special 1 | . . . . . . . . . . . . . . . . . . . . 1 . . . . . . . . . . . . . . . . . . . Kinetic 484 | 12 50 . 113 . 85 66 . . . . 16 . . . 1 . . . . . . . . . 44 . 22 . . . . . . . . 8 34 6 27 Thermal 155 | . . . 5 . 13 24 . . . . 14 . 16 . 1 2 . 1 . . . 6 4 . . . . . . . . 7 55 2 2 2 1 . . Explosive 114 | . 6 2 14 . 23 . 3 . . . 12 . . . . 2 . . 7 . . . 2 . 30 1 1 . . . . 2 . . 6 2 1 . . Electromagnetic 181 | . 25 . . . 84 33 1 . . . . . . . . . . . . . . . . . . . . . . . . . 1 17 3 1 . 13 3 Slashing 1 | . . . . . . . . . . . . . . . . . . . . . . . . . . . . . . . . . . 1 . . . . . Phasic 11 | . . . . . . . . . . . 11 . . . . . . . . . . . . . . . . . . . . . . . . . . . . Robot Hit Streak 45 | 5 16 . 25 . 28 45 . . . . 2 . . . . 2 . . 5 6 . 7 . . 11 . 4 . . . . 1 6 17 3 7 10 13 8 Robot Miss Streak 8 | 1 3 1 2 . 4 2 . . . . 7 . . . . 1 . . 2 . . . . . 8 . 1 . . . . 2 3 . 2 3 3 3 3 Penetration Max 2 | . . . . . . . . . . . . . . . . . . . . . . . . . 2 . . . . . . . . . . . 1 . 1 Secondary Targets . | . . . . . . . . . . . . . . . . . . . . . . . . . . . . . . . . . . . . . . . . Capacitor 2 | . . . . . . . . . . . . . . . . . . . . . . . . . . . . . . . . . . . . 2 . . . Autonomous 137 | . . . 100 . 13 24 . . . . . . . . . . . . . . . . . . . . . . . . . . . . . . . . . Shots Hit Robots 1180 | 10 53 . 102 . 153 103 27 . 2 . 25 . 1 . 4 1 . 1 9 24 . 6 3 . 27 . 11 . . 6 3 5 32 40 25 54 40 112 301 Core Hits 791 | 2 33 4 49 . 108 35 9 . 1 . 31 . 1 . 4 10 . 1 15 12 . 4 8 . 85 3 30 . . 6 3 11 13 10 28 36 34 62 143 Critical Hits 224 | . . . . . . 1 1 . . . 1 . . . . . . . 1 . . 1 . . 2 . . . . . . . 1 7 2 21 46 33 107 Critical Kills 64 | . . . . . . 1 . . . . 1 . . . . . . . 1 . . 1 . . . . . . . . . . . 3 1 11 18 10 17 Critical Parts Destroyed 120 | . . . . . . . 1 . . . . . . . . . . . . . . . . . 2 . . . . . . . 1 . 1 10 28 18 59 Melee Attacks 967 | . . . . . . . 61 10 2 . 23 . 21 . 24 2 . 5 9 61 . 21 9 . 10 . 43 . . 6 3 18 11 60 43 65 44 121 295 Impact . | . . . . . . . . . . . . . . . . . . . . . . . . . . . . . . . . . . . . . . . . Slashing 712 | . . . . . . . 61 10 2 . . . . . . . . . . . . . . . . . . . . . . . 11 60 43 65 44 121 295 Piercing 255 | . . . . . . . . . . . 23 . 21 . 24 2 . 5 9 61 . 21 9 . 10 . 43 . . 6 3 18 . . . . . . . Sneak Attacks 63 | . . . . . . . 3 . 2 . 10 . . . 2 . . 1 1 6 . 3 3 . 1 . 4 . . . . 3 1 4 4 5 1 9 . Combat Hostiles 4 | . . . . . . . . . . . . . . . . . . . . . . . . . 1 . 1 . . . . . . . . . . 2 . Follow-up Attacks . | . . . . . . . . . . . . . . . . . . . . . . . . . . . . . . . . . . . . . . . . Damage Inflicted 88489 | 120 1449 240 3271 1 5527 2396 1332 . 226 . 2284 . 37 . 334 458 . 143 1161 1384 . 440 509 . 4562 364 1535 . . 614 316 893 1597 6661 4482 5008 1658 14087 25400 Guns 8679 | 120 434 . 2591 . 2207 1565 . . . . 293 . . . . . . . . . . . . . 661 . 60 . . . . . . 30 . 55 391 42 230 Cannons 2993 | . 302 . . . 129 818 . . . . . . . . . . . . . . . 35 . . . . . . . . . . 1163 268 36 . . 136 106 Explosions 16011 | . 713 240 646 . 3047 . 31 . . . 863 . . . . 458 . . 910 . . . 137 . 3695 364 782 . . . . 530 . . 1936 794 383 482 . Melee 60614 | . . . . . . . 1301 . 226 . 1128 . 37 . 334 . . 143 251 1384 . 405 372 . 206 . 693 . . 614 316 363 434 6363 2510 4159 884 13427 25064 Ramming 192 | . . . 34 1 144 13 . . . . . . . . . . . . . . . . . . . . . . . . . . . . . . . . . Kinetic 6358 | 120 506 . 2444 . 722 867 . . . . 260 . . . . . . . . . . . . . 661 . 60 . . . . . . . . 55 391 42 230 Thermal 3428 | . 30 . 147 . 582 698 . . . . 391 . . . . . . . . . . 35 . . . . 382 . . . . . 1163 . . . . . . Explosive 14006 | . 683 240 646 . 2743 . 15 . . . 472 . . . . 458 . . 910 . . . 137 . 3695 364 . . . . . 530 . . 1936 794 383 . . Electromagnetic 3828 | . 230 . . . 1336 818 16 . . . . . . . . . . . . . . . . . . . 400 . . . . . . 268 36 . . 618 106 Impact . | . . . . . . . . . . . . . . . . . . . . . . . . . . . . . . . . . . . . . . . . Slashing 54398 | . . . . . . . 1301 . 226 . . . . . . . . . . . . . . . . . . . . . . . 434 6393 2510 4159 884 13427 25064 Piercing 6246 | . . . . . . . . . . . 1128 . 37 . 334 . . 143 251 1384 . 405 372 . 206 . 693 . . 614 316 363 . . . . . . . Phasic 33 | . . . . . . . . . . . 33 . . . . . . . . . . . . . . . . . . . . . . . . . . . . Highest Corruption 6 | . . . . . . 2 . . . . . . . . 6 6 6 6 6 . . . . . 1 1 1 1 1 1 1 . . . . . . . . Average Corruption 2 | . . . . . . 2 . . . . . . . . 5 6 6 6 6 . . . . . 1 1 1 1 1 1 1 . . . . . . . . Corruption Purged . | . . . . . . . . . . . . . . . . . . . . . . . . . . . . . . . . . . . . . . . . Effects 44 | . . . . . . 9 . . . . . . . . 14 8 . 2 4 . . . . . 2 . 2 2 . 1 . . . . . . . . . Message Errors 7 | . . . . . . 4 . . . . . . . . . 2 . . . . . . . . . . . 1 . . . . . . . . . . . Matter Fused 8 | . . . . . . . . . . . . . . . 3 2 . . 3 . . . . . . . . . . . . . . . . . . . . Heat Flow Errors 6 | . . . . . . 2 . . . . . . . . 2 2 . . . . . . . . . . . . . . . . . . . . . . . Energy Discharges 7 | . . . . . . 1 . . . . . . . . 1 1 . 1 . . . . . . 1 . 1 . . 1 . . . . . . . . . Data Loss (minor) 9 | . . . . . . 1 . . . . . . . . 5 . . . 1 . . . . . . . 1 1 . . . . . . . . . . . Data Loss (major) 1 | . . . . . . . . . . . . . . . . . . 1 . . . . . . . . . . . . . . . . . . . . . Misfires 1 | . . . . . . . . . . . . . . . 1 . . . . . . . . . . . . . . . . . . . . . . . . Targeting Errors 5 | . . . . . . 1 . . . . . . . . 2 1 . . . . . . . . 1 . . . . . . . . . . . . . . Overload Shots . | . . . . . . . . . . . . . . . . . . . . . . . . . . . . . . . . . . . . . . . . Overflow Damage 6669 | . 5 54 . . 341 57 224 . 85 . 214 . . . . . . . 27 283 . 45 11 . 30 37 107 . . 18 . 103 354 554 530 440 89 2093 968 Projectiles 170 | . 5 . . . 60 57 . . . . . . . . . . . . . . . . . . . . . . . . . . 48 . . . . . . Explosions 562 | . . 54 . . 263 . . . . . 23 . . . . . . . 27 . . . 11 . 30 37 57 . . . . 41 . . 19 . . . . Melee 5937 | . . . . . 18 . 224 . 85 . 191 . . . . . . . . 283 . 45 . . . . 50 . . 18 . 62 306 554 511 440 89 2093 968 Knockbacks 3 | . 2 . . . 1 . . . . . . . . . . . . . . . . . . . . . . . . . . . . . . . . . . Impact 1 | . . . . . 1 . . . . . . . . . . . . . . . . . . . . . . . . . . . . . . . . . . Kinetic 2 | . 2 . . . . . . . . . . . . . . . . . . . . . . . . . . . . . . . . . . . . . . Secondary . | . . . . . . . . . . . . . . . . . . . . . . . . . . . . . . . . . . . . . . . . Self-Inflicted Damage 489 | . 48 23 11 . 351 . . . . . . . . . . . . . . . . . . . 50 . . . . . . . . . . . . 6 . Shots 19 | . 2 1 1 . 12 . . . . . . . . . . . . . . . . . . . 2 . . . . . . . . . . . . 1 . Rammed 25 | . . . 7 1 14 3 . . . . . . . . . . . . . . . . . . . . . . . . . . . . . . . . . Targets Rammed 27 | . . . 8 1 15 3 . . . . . . . . . . . . . . . . . . . . . . . . . . . . . . . . . Kicked . | . . . . . . . . . . . . . . . . . . . . . . . . . . . . . . . . . . . . . . . . Crushed 2 | . . . 1 . 1 . . . . . . . . . . . . . . . . . . . . . . . . . . . . . . . . . . Highest Temperature 270 | . 162 . 12 . 270 261 . . . . 162 . 168 . 198 136 . 68 270 18 . 182 210 5 88 10 58 . 63 . . 76 212 97 . 18 . . . Average Temperature 61 | . 49 . 5 . 77 52 . . . . 52 . 63 . 81 59 . 53 108 11 . 90 75 5 28 7 28 . 28 . . 37 90 44 . 13 . . . Received Heat Transfer 1884 | . 24 . . 18 450 297 15 . . . 63 21 18 . 6 54 . 24 42 . . 18 18 9 9 . 63 . . . . 60 21 81 36 152 20 80 285 Siege Activations . | . . . . . . . . . . . . . . . . . . . . . . . . . . . . . . . . . . . . . . . . Robots Corrupted 11 | . . . . . 1 3 . . . . . . . . . . . . . . . . . . . . . . . . . . . 2 . . . 4 1 Combat Hostiles 9 | . . . . . . 2 . . . . . . . . . . . . . . . . . . . . . . . . . . . 2 . . . 4 1 Parts Fried 36 | . 2 . . . 13 8 . . . . . . . . . . . . . . . . . . . . . . . . . . . 1 . . . 10 2 Impact Corruptions 1 | . . . . . 1 . . . . . . . . . . . . . . . . . . . . . . . . . . . . . . . . . . Robots Melted . | . . . . . . . . . . . . . . . . . . . . . . . . . . . . . . . . . . . . . . . . Combat Hostiles . | . . . . . . . . . . . . . . . . . . . . . . . . . . . . . . . . . . . . . . . . Parts Melted 12 | . . . 8 . 1 . . . . . . . . . . . . . . . . . . . 3 . . . . . . . . . . . . . . Heat Transferred 3451 | . 50 . 185 . 794 888 . . . . . . . . . . . . . . . 50 . . . . 300 . . . . . 1184 . . . . . . Parts Sabotaged . | . . . . . . . . . . . . . . . . . . . . . . . . . . . . . . . . . . . . . . . . Parts Stolen 1 | . . . . . . . . . . . . . . . . 1 . . . . . . . . . . . . . . . . . . . . . . . Parts Stripped . | . . . . . . . . . . . . . . . . . . . . . . . . . . . . . . . . . . . . . . . . Power Chain Reactions 10 | . 1 . . . 6 . . . . . . . . . . . . . . . . . . . . . 3 . . . . . . . . . . . . Missiles Intercepted 12 | . . . . . . . . . . . . . . . . . . . . . . . . . . . . . . . . . . . . . . 12 . Alert | -11 -10 -10 -10 -9 -8 -8 -7 -7 -7 -7 -7 -6 -6 -6 -6 -6 -6 -6 -5 -5 -5 -5 -5 -5 -5 -4 -4 -4 -4 -4 -3 -3 -3 -3 -2 -2 -1 -1 -1 ------- Run | Scr Mat Min Exi Min Mat Sto Fac Low Low Zio Dee Pro Fac Was Fac Low Low Dat Pro Fac Was Fac Upp Upp War Pro Fac Upp Upp Zhi Pro Res Qua Sec Res Tes Acc Com Ac0 Peak Influence 1472 | 5 312 99 . . 753 372 279 . . . . . 239 36 158 . . . . 563 227 357 . . . . 705 . . . . 446 301 292 1044 1472 1176 1314 . Initial 883 | . 3 14 . . . 269 156 . . . . . 46 21 25 . . . . 113 197 158 . . . . 56 . . . . 3 254 24 164 508 883 623 . Average 371 | 2 150 98 . . 465 262 185 . . . . . 116 28 78 . . . . 237 212 245 . . . . 211 . . . . 222 78 116 518 1027 942 890 . Maximum Alert Level 4 | . 1 . . . 3 1 1 . . . . . 1 . . . . . . 2 1 1 . . . . 3 . . . . 2 1 1 3 4 4 4 . Low Security (%) 34 | 100 81 100 . 100 10 28 61 . . . . . 86 100 100 . . . . 36 38 27 . . . . 47 . . . . 43 96 80 12 . . . . Level 1 23 | . 18 . . . 25 71 38 . . . . . 13 . . . . . . 58 61 72 . . . . 46 . . . . 47 3 19 29 . . . . Level 2 12 | . . . . . 57 . . . . . . . . . . . . . . 5 . . . . . . 6 . . . . 9 . . 29 29 . 1 . Level 3 12 | . . . . . 6 . . . . . . . . . . . . . . . . . . . . . . . . . . . . . 27 18 87 22 . Level 4 17 | . . . . . . . . . . . . . . . . . . . . . . . . . . . . . . . . . . . . 51 11 75 . Level 5 . | . . . . . . . . . . . . . . . . . . . . . . . . . . . . . . . . . . . . . . . . High Security . | . . . . . . . . . . . . . . . . . . . . . . . . . . . . . . . . . . . . . . . . Max Security . | . . . . . . . . . . . . . . . . . . . . . . . . . . . . . . . . . . . . . . . . Squads Dispatched 49 | . 2 . . . 7 3 5 . . . . . . . 2 . . . . 2 . 1 . . . . 1 . . . . 2 2 3 2 8 5 4 . Investigation 14 | . . . . . 4 1 1 . . . . . . . 1 . . . . 1 . . . . . . . . . . . . . . 1 1 3 1 . Extermination 10 | . . . . . . . 2 . . . . . . . . . . . . . . 1 . . . . 1 . . . . . 1 1 . 1 2 1 . Reinforcement 20 | . 2 . . . 2 2 2 . . . . . . . 1 . . . . 1 . . . . . . . . . . . 2 1 2 1 3 . 1 . Assault 5 | . . . . . 1 . . . . . . . . . . . . . . . . . . . . . . . . . . . . . . 3 . 1 . Garrison . | . . . . . . . . . . . . . . . . . . . . . . . . . . . . . . . . . . . . . . . . Intercept . | . . . . . . . . . . . . . . . . . . . . . . . . . . . . . . . . . . . . . . . . Construction Impeded 1 | . . . . . 1 . . . . . . . . . . . . . . . . . . . . . . . . . . . . . . . . . . Haulers Reinforced 2 | . . . . . . . . . . . . . . . . . . . . . . . . . . . . . . . . . . 1 1 . . . . Stealth | -11 -10 -10 -10 -9 -8 -8 -7 -7 -7 -7 -7 -6 -6 -6 -6 -6 -6 -6 -5 -5 -5 -5 -5 -5 -5 -4 -4 -4 -4 -4 -3 -3 -3 -3 -2 -2 -1 -1 -1 --------- Run | Scr Mat Min Exi Min Mat Sto Fac Low Low Zio Dee Pro Fac Was Fac Low Low Dat Pro Fac Was Fac Upp Upp War Pro Fac Upp Upp Zhi Pro Res Qua Sec Res Tes Acc Com Ac0 Distress Signals 49 | . 1 . . . 5 5 1 . . . . . . . . . . . . . . 1 . . . . 5 . . . . 1 . 4 5 . 2 19 . Communications Jammed 152 | . . . . . . . . . . . . . . . . . . . . . . . . . . . . . . . . . . 19 40 . 93 . . Distress Signals 150 | . . . . . . . . . . . . . . . . . . . . . . . . . . . . . . . . . . 19 40 . 91 . . Times Spotted 710 | . 24 2 18 2 61 24 23 . 4 . 17 7 8 6 10 11 . 4 12 14 5 4 3 7 80 5 42 . 4 . 1 23 10 34 28 29 51 45 92 Peak Tracking Total 17 | . 4 2 9 2 8 4 5 . 4 . 4 5 5 6 4 10 . 4 7 5 5 4 3 6 17 5 16 . 6 . 1 12 4 10 8 5 16 6 13 Tactical Retreats 105 | . 1 . 9 . 9 . 4 . . . 5 3 1 . 1 3 . . 3 2 . 1 2 1 2 1 8 . 1 . . 5 2 10 3 . 9 3 16 Traps | -11 -10 -10 -10 -9 -8 -8 -7 -7 -7 -7 -7 -6 -6 -6 -6 -6 -6 -6 -5 -5 -5 -5 -5 -5 -5 -4 -4 -4 -4 -4 -3 -3 -3 -3 -2 -2 -1 -1 -1 ------- Run | Scr Mat Min Exi Min Mat Sto Fac Low Low Zio Dee Pro Fac Was Fac Low Low Dat Pro Fac Was Fac Upp Upp War Pro Fac Upp Upp Zhi Pro Res Qua Sec Res Tes Acc Com Ac0 Traps Triggered 19 | . . . . . 1 1 1 . . . . . 1 . 6 . . . . 1 . . . . . . 2 . . . . 1 . . . 3 2 . . Indirectly . | . . . . . . . . . . . . . . . . . . . . . . . . . . . . . . . . . . . . . . . . Trap Hack Attempts . | . . . . . . . . . . . . . . . . . . . . . . . . . . . . . . . . . . . . . . . . Triggered . | . . . . . . . . . . . . . . . . . . . . . . . . . . . . . . . . . . . . . . . . Disarmed 8 | . . . . . . . . . . . . . . . . . . . . . . . . . . . . . . . . . . 8 . . . . . Reprogrammed . | . . . . . . . . . . . . . . . . . . . . . . . . . . . . . . . . . . . . . . . . Reused . | . . . . . . . . . . . . . . . . . . . . . . . . . . . . . . . . . . . . . . . . Traps Extracted . | . . . . . . . . . . . . . . . . . . . . . . . . . . . . . . . . . . . . . . . . Installed . | . . . . . . . . . . . . . . . . . . . . . . . . . . . . . . . . . . . . . . . . Triggered 11 | . . . . . . . . 1 . . . 2 . . . . . . . . . . . . 8 . . . . . . . . . . . . . . Exploded 3 | . . . 3 . . . . . . . . . . . . . . . . . . . . . . . . . . . . . . . . . . . . Machines | -11 -10 -10 -10 -9 -8 -8 -7 -7 -7 -7 -7 -6 -6 -6 -6 -6 -6 -6 -5 -5 -5 -5 -5 -5 -5 -4 -4 -4 -4 -4 -3 -3 -3 -3 -2 -2 -1 -1 -1 ---------- Run | Scr Mat Min Exi Min Mat Sto Fac Low Low Zio Dee Pro Fac Was Fac Low Low Dat Pro Fac Was Fac Upp Upp War Pro Fac Upp Upp Zhi Pro Res Qua Sec Res Tes Acc Com Ac0 Machines Disabled 96 | . 3 . 11 . 3 2 3 . . . 5 . 1 . . 1 . 1 . 1 . . . . 1 . 14 . . . . 3 4 10 3 13 . 5 12 Max in Single Turn 11 | . 1 . 2 . 2 1 1 . . . 1 . 1 . . 1 . 1 . 1 . . . . 1 . 11 . . . . 1 1 1 1 4 . 2 1 Garrison Access 18 | . . . . . . . 2 . . . . . 1 . 1 . . . . 3 . 1 . . . . 1 . . . . . 1 1 3 1 3 . . Phase Generator 1 | . . . . . . . . . . . . . . . . . . . . . . . . . . . . . . . . . . . . . . 1 . Machines Sabotaged . | . . . . . . . . . . . . . . . . . . . . . . . . . . . . . . . . . . . . . . . . Garrisons Compromised . | . . . . . . . . . . . . . . . . . . . . . . . . . . . . . . . . . . . . . . . . Overloaded Fab Kills . | . . . . . . . . . . . . . . . . . . . . . . . . . . . . . . . . . . . . . . . . Fab Network Shutdowns 2 | . . . . . . . . . . . . . . . . . . . . 1 . . . . . . . . . . . . . . . 1 . . . Hacking | -11 -10 -10 -10 -9 -8 -8 -7 -7 -7 -7 -7 -6 -6 -6 -6 -6 -6 -6 -5 -5 -5 -5 -5 -5 -5 -4 -4 -4 -4 -4 -3 -3 -3 -3 -2 -2 -1 -1 -1 --------- Run | Scr Mat Min Exi Min Mat Sto Fac Low Low Zio Dee Pro Fac Was Fac Low Low Dat Pro Fac Was Fac Upp Upp War Pro Fac Upp Upp Zhi Pro Res Qua Sec Res Tes Acc Com Ac0 Machines Accessed 193 | . 6 . 2 . 10 9 19 . . 1 . . 15 . 6 . . 4 . 14 . 7 . . 2 1 13 1 . 4 . 6 11 20 5 7 20 8 2 Terminals 112 | . 5 . . . 9 6 9 . . . . . 10 . 4 . . . . 7 . 4 . . . 1 7 . . . . 5 7 17 1 2 11 7 . Fabricators 20 | . . . . . . . 4 . . . . . 4 . 1 . . . . 2 . 1 . . . . 2 . . . . 1 . . . 1 4 . . Repair Stations 12 | . 1 . . . . 2 1 . . . . . . . . . . . . 1 . 1 . . . . 2 . . . . . 1 . 1 1 1 . . Recycling Units 7 | . . . . . 1 1 1 . . . . . . . . . . . . 1 . . . . . . 1 . . . . . . . . . 1 1 . Scanalyzers 8 | . . . . . . . 2 . . . . . . . . . . . . . . . . . . . . . . . . . 2 2 . 2 . . . Garrison Access 18 | . . . . . . . 2 . . . . . 1 . 1 . . . . 3 . 1 . . . . 1 . . . . . 1 1 3 1 3 . . Total Hacks 719 | . 24 . 2 . 27 22 49 . . 3 . . 38 . 15 . . 26 . 50 . 27 . . 6 1 53 1 . 17 . 44 48 60 14 40 95 37 20 Successful 483 | . 14 . 2 . 11 16 38 . . 3 . . 24 . 9 . . 26 . 29 . 17 . . 6 1 40 1 . 17 . 22 41 53 7 28 42 16 20 Failed 234 | . 10 . . . 16 6 11 . . . . . 14 . 6 . . . . 21 . 10 . . . . 13 . . . . 22 6 6 7 12 53 21 . Catastrophic 28 | . 1 . . . 4 1 . . . . . . 2 . . . . . . 3 . 1 . . . . 3 . . . . 4 . 1 . 1 5 2 . Database Lockouts 2 | . . . . . . . . . . . . . . . . . . . . . . . . . . . . . . . . . 1 1 . . . . . Manual 335 | . 12 . 1 . 19 8 22 . . 5 . . 22 . 12 . . . . 29 . 13 . . 1 . 32 . . . . 31 27 29 1 18 30 23 . Terminals 435 | . 20 . . . 26 15 23 . . . . . 22 . 12 . . . . 29 . 19 . . . 1 31 . . . . 38 38 53 4 19 51 34 . Fabricators 94 | . . . . . . . 12 . . . . . 13 . 2 . . . . 11 . 3 . . . . 9 . . . . 6 . . . 9 29 . . Repair Stations 45 | . 4 . . . . 6 2 . . . . . . . . . . . . 5 . 4 . . . . 8 . . . . . 2 . 3 4 7 . . Recycling Units 14 | . . . . . 1 1 2 . . . . . . . . . . . . 1 . . . . . . 4 . . . . . . . . . 2 3 . Scanalyzers 28 | . . . . . . . 8 . . . . . . . . . . . . . . . . . . . . . . . . . 7 6 . 7 . . . Garrison Access 28 | . . . . . . . 2 . . . . . 3 . 1 . . . . 4 . 1 . . . . 1 . . . . . 1 1 7 1 6 . . Terminal Hacks 230 | . 7 . 2 . 5 5 8 . . 3 . . 4 . 4 . . 26 . 7 . 7 . . 6 1 13 1 . 17 . 13 19 30 2 7 14 9 20 Record 34 | . . . 1 . . . . . . . . . . . . . . 11 . . . . . . . 1 . . . 5 . . . . . . . . 16 Part Schematic 32 | . . . . . . . 3 . . 3 . . 1 . . . . 6 . 2 . 2 . . . . 3 . . 4 . 3 1 2 1 1 . . . Robot Schematic 6 | . . . . . . . . . . . . . . . . . . 6 . . . . . . . . . . . . . . . . . . . . . Robot Analysis 9 | . 2 . . . . . . . . . . . . . . . . . . . . . . . . . . . . 4 . . 2 1 . . . . . Prototype ID Bank 13 | . . . . . . . . . . . . . . . . . . 3 . . . . . . 5 . . . . 4 . 1 . . . . . . . Open Door 14 | . . . . . . 3 . . . . . . . . . . . . . . . . . . 1 . . 1 . . . 1 . 3 . . 4 1 . Level Access Points 1 | . . . . . . . . . . . . . . . . . . . . . . . . . . . . . . . . . . 1 . . . . . Branch Access Points 7 | . . . . . 1 . 1 . . . . . . . 1 . . . . . . 1 . . . . 1 . . . . 1 . . 1 . . . . Machine Index 6 | . . . . . . . . . . . . . . . . . . . . . . 1 . . . . 1 . . . . 1 1 1 . . 1 . . Terminal Index 7 | . . . . . . 1 1 . . . . . 1 . 1 . . . . . . 1 . . . . . . . . . . . 1 . 1 . . . Fabricator Index 3 | . . . . . . . . . . . . . 1 . . . . . . 1 . . . . . . . . . . . . . . . 1 . . . Repair Station Index 1 | . . . . . . . . . . . . . . . . . . . . 1 . . . . . . . . . . . . . . . . . . . Scanalyzer Index 1 | . . . . . . . . . . . . . . . . . . . . . . . . . . . . . . . . . . . . 1 . . . Alert Level 1 | . . . . . . . . . . . . . . . . . . . . . . . . . . . . . . . . . . . . . 1 . . Unreport Threat 19 | . . . . . 2 1 . . . . . . . . . . . . . . . . . . . . 4 . . . . . 4 1 . . 4 3 . Locate Traps 15 | . 1 . . . . . 1 . . . . . . . 1 . . . . 2 . 1 . . . . 1 . . . . 1 3 2 . . 2 . . Disarm Traps 3 | . . . . . . . . . . . . . . . . . . . . . . . . . . . . . . . . . . 3 . . . . . Dispatch Records 1 | . . . . . . . . . . . . . . . . . . . . . . . . . . . . . . . . . . . . . . 1 . Recall Extermination 2 | . . . . . . . . . . . . . . . . . . . . . . . . . . . . . . . . . . 1 . . 1 . . Recall Reinforcements 5 | . . . . . 1 . . . . . . . . . 1 . . . . . . . . . . . . . . . . 1 . 1 . 1 . . . Hauler Manifests 8 | . 1 . . . . . 1 . . . . . 1 . . . . . . 1 . . . . . . . . . . . 1 . 2 . 1 . . . Registered Components 2 | . . . . . . . . . . . . . . . . . . . . . . . . . . . . . . . . . 1 . . . . 1 . Registered Prototypes 3 | . . . . . . . . . . . . . . . . . . . . . . . . . . . . . . . . 1 1 . . . . 1 . Zone Layout 29 | . 3 . . . 1 . 1 . . . . . . . . . . . . . . 1 . . . . 3 . . . . 2 6 10 . 1 1 . . EX-Prototype ID Bank 1 | . . . 1 . . . . . . . . . . . . . . . . . . . . . . . . . . . . . . . . . . . . Activate Exoskeleton 1 | . . . . . . . . . . . . . . . . . . . . . . . . . . . . . . . . . . 1 . . . . . Disengage Seal 2 | . . . . . . . . . . . . . . . . . . . . . . . . . . . . . . . . . . . . . . 2 . Gate Test 138-A 1 | . . . . . . . . . . . . . . . . . . . . . . . . . . . . . . . . . . . . . . . 1 Gate Test 138-B 1 | . . . . . . . . . . . . . . . . . . . . . . . . . . . . . . . . . . . . . . . 1 Gate Test 138-C 2 | . . . . . . . . . . . . . . . . . . . . . . . . . . . . . . . . . . . . . . . 2 Fabricator Hacks 43 | . . . . . . . 7 . . . . . 7 . . . . . . 7 . 2 . . . . 5 . . . . 2 . . . 5 8 . . Load Schematic 18 | . . . . . . . 3 . . . . . 4 . . . . . . 2 . 1 . . . . 2 . . . . 1 . . . 1 4 . . Build 25 | . . . . . . . 4 . . . . . 3 . . . . . . 5 . 1 . . . . 3 . . . . 1 . . . 4 4 . . Repair Station Hacks 33 | . 4 . . . . 6 2 . . . . . . . . . . . . 3 . 3 . . . . 6 . . . . . 2 . 2 2 3 . . Scan Component 18 | . 2 . . . . 3 1 . . . . . . . . . . . . 2 . 2 . . . . 3 . . . . . 1 . 1 1 2 . . Repair 15 | . 2 . . . . 3 1 . . . . . . . . . . . . 1 . 1 . . . . 3 . . . . . 1 . 1 1 1 . . Recycling Unit Hacks 2 | . . . . . . . 2 . . . . . . . . . . . . . . . . . . . . . . . . . . . . . . . . Process 1 | . . . . . . . 1 . . . . . . . . . . . . . . . . . . . . . . . . . . . . . . . . Retrieve Matter 1 | . . . . . . . 1 . . . . . . . . . . . . . . . . . . . . . . . . . . . . . . . . Scanalyzer 27 | . . . . . . . 8 . . . . . . . . . . . . . . . . . . . . . . . . . 7 6 . 6 . . . Insert Component 18 | . . . . . . . 2 . . . . . . . . . . . . . . . . . . . . . . . . . 5 6 . 5 . . . Analyze 9 | . . . . . . . 6 . . . . . . . . . . . . . . . . . . . . . . . . . 2 . . 1 . . . Garrison Access Hacks 18 | . . . . . . . 2 . . . . . 1 . 1 . . . . 3 . 1 . . . . 1 . . . . . 1 1 3 1 3 . . Seal Access 18 | . . . . . . . 2 . . . . . 1 . 1 . . . . 3 . 1 . . . . 1 . . . . . 1 1 3 1 3 . . Unauthorized Hacks 130 | . 3 . . . 6 5 9 . . . . . 12 . 4 . . . . 9 . 4 . . . . 15 . . . . 7 12 16 . 7 14 7 . Terminals 96 | . 3 . . . 5 4 6 . . . . . 7 . 2 . . . . 5 . 4 . . . . 9 . . . . 6 12 16 . 4 7 6 . Track 38 | . 2 . . . 2 1 . . . . . . 2 . . . . . . 1 . 2 . . . . 3 . . . . 2 6 9 . 2 3 3 . Assimilate 12 | . 1 . . . . 1 1 . . . . . 1 . 2 . . . . 1 . . . . . . . . . . . . 1 2 . . 2 . . Botnet 37 | . . . . . 2 2 4 . . . . . 3 . . . . . . 3 . 2 . . . . 5 . . . . 3 3 4 . 2 2 2 . Disrupt 6 | . . . . . . . . . . . . . 1 . . . . . . . . . . . . . 1 . . . . 1 1 1 . . . 1 . Operators 2 | . . . . . . . 1 . . . . . . . . . . . . . . . . . . . . . . . . . 1 . . . . . . Search 1 | . . . . . 1 . . . . . . . . . . . . . . . . . . . . . . . . . . . . . . . . . . Fabricators 28 | . . . . . . . 3 . . . . . 5 . 2 . . . . 3 . . . . . . 4 . . . . 1 . . . 3 7 . . Report 3 | . . . . . . . . . . . . . . . 1 . . . . . . . . . . . . . . . . . . . . 1 1 . . Prioritize 9 | . . . . . . . 1 . . . . . 2 . . . . . . 1 . . . . . . 2 . . . . . . . . 1 2 . . Siphon 15 | . . . . . . . 2 . . . . . 3 . . . . . . 2 . . . . . . 2 . . . . 1 . . . 1 4 . . Haulers 1 | . . . . . . . . . . . . . . . 1 . . . . . . . . . . . . . . . . . . . . . . . . Repair Stations . | . . . . . . . . . . . . . . . . . . . . . . . . . . . . . . . . . . . . . . . . Recycling Units 6 | . . . . . 1 1 . . . . . . . . . . . . . 1 . . . . . . 2 . . . . . . . . . . 1 . Recyclers 1 | . . . . . . . . . . . . . . . . . . . . . . . . . . . 1 . . . . . . . . . . . . Mask 3 | . . . . . . . . . . . . . . . . . . . . 1 . . . . . . 1 . . . . . . . . . . 1 . Tunnel 2 | . . . . . 1 1 . . . . . . . . . . . . . . . . . . . . . . . . . . . . . . . . . Scanalyzers . | . . . . . . . . . . . . . . . . . . . . . . . . . . . . . . . . . . . . . . . . Garrison Access . | . . . . . . . . . . . . . . . . . . . . . . . . . . . . . . . . . . . . . . . . Data Cores Recovered 1 | . . . . . . . . . . . . . . . . . . . . . . . . . . . . . . . . . . . . . . 1 . Used 1 | . . . . . . . . . . . . . . . . . . . . . . . . . . . . . . . . . . . . . . 1 . Hacking Detections 125 | . 6 . . . 8 7 15 . . . . . 14 . 5 . . . . 12 . 6 . . . . 8 . . . . 4 6 9 4 4 13 4 . Full Trace Events 9 | . . . . . 2 . 1 . . . . . . . 1 . . . . 1 . . . . . . . . . . . . . . . 1 3 . . Feedback Events 2 | . . . . . . . . . . . . . . . . . . . . 1 . . . . . . . . . . . . . . . . 1 . . Hackware Fried 2 | . . . . . . . . . . . . . . . . . . . . 1 . . . . . . . . . . . . . . . . 1 . . Feedback Blocked . | . . . . . . . . . . . . . . . . . . . . . . . . . . . . . . . . . . . . . . . . Robot Schematics Acquired 6 | . . . . . . . . . . . . . . . . . . 6 . . . . . . . . . . . . . . . . . . . . . Robots Built . | . . . . . . . . . . . . . . . . . . . . . . . . . . . . . . . . . . . . . . . . Matter . | . . . . . . . . . . . . . . . . . . . . . . . . . . . . . . . . . . . . . . . . Time . | . . . . . . . . . . . . . . . . . . . . . . . . . . . . . . . . . . . . . . . . Total Robot Build Rating . | . . . . . . . . . . . . . . . . . . . . . . . . . . . . . . . . . . . . . . . . Part Schematics Acquired 35 | . . . . . . . 4 . . 3 . . 1 . . . . 6 . 2 . 2 . . . . 3 . . 4 . 3 2 2 1 2 . . . Parts Built 24 | . . . . . . . 4 . . . . . 4 . . . . . . 4 . 1 . . . . 3 . . . . 1 . . . 3 4 . . Matter 5363 | . . . . . . . 572 . . . . . 624 . . . . . . 927 . 212 . . . . 581 . . . . 263 . . . 936 1248 . . Time 1494 | . . . . . . . 226 . . . . . 244 . . . . . . 244 . 53 . . . . 221 . . . . 62 . . . 148 296 . . Total Part Build Rating 152 | . . . . . . . 16 . . . . . 18 . . . . . . 23 . 6 . . . . 19 . . . . 7 . . . 27 36 . . Parts Repaired 15 | . 2 . . . . 3 1 . . . . . . . . . . . . 1 . 1 . . . . 3 . . . . . 1 . 1 1 1 . . Time 577 | . 52 . . . . 114 80 . . . . . . . . . . . . 50 . 33 . . . . 86 . . . . . 28 . 49 49 36 . . Parts Recycled . | . . . . . . . . . . . . . . . . . . . . . . . . . . . . . . . . . . . . . . . . Recycled Matter 13 | . . . . . . . 13 . . . . . . . . . . . . . . . . . . . . . . . . . . . . . . . . Retrieved Matter 13 | . . . . . . . 13 . . . . . . . . . . . . . . . . . . . . . . . . . . . . . . . . Retrieved Components . | . . . . . . . . . . . . . . . . . . . . . . . . . . . . . . . . . . . . . . . . Parts Scanalyzed 3 | . . . . . . . 1 . . . . . . . . . . . . . . . . . . . . . . . . . 1 . . 1 . . . Part Schematics Acquired 3 | . . . . . . . 1 . . . . . . . . . . . . . . . . . . . . . . . . . 1 . . 1 . . . Parts Damaged 1 | . . . . . . . 1 . . . . . . . . . . . . . . . . . . . . . . . . . . . . . . . . Bothacking | -11 -10 -10 -10 -9 -8 -8 -7 -7 -7 -7 -7 -6 -6 -6 -6 -6 -6 -6 -5 -5 -5 -5 -5 -5 -5 -4 -4 -4 -4 -4 -3 -3 -3 -3 -2 -2 -1 -1 -1 ------------ Run | Scr Mat Min Exi Min Mat Sto Fac Low Low Zio Dee Pro Fac Was Fac Low Low Dat Pro Fac Was Fac Upp Upp War Pro Fac Upp Upp Zhi Pro Res Qua Sec Res Tes Acc Com Ac0 Used RIF Installer . | . . . . . . . . . . . . . . . . . . . . . . . . . . . . . . . . . . . . . . . . Robots Hacked 1 | . . . . . . . . . . . . . . . . . . . . 1 . . . . . . . . . . . . . . . . . . . Non-combat 1 | . . . . . . . . . . . . . . . . . . . . 1 . . . . . . . . . . . . . . . . . . . Combat . | . . . . . . . . . . . . . . . . . . . . . . . . . . . . . . . . . . . . . . . . Robot Hacks Applied 1 | . . . . . . . . . . . . . . . . . . . . 1 . . . . . . . . . . . . . . . . . . . find_chute 1 | . . . . . . . . . . . . . . . . . . . . 1 . . . . . . . . . . . . . . . . . . . Relay Couplers Released 3 | . . . . . . . . . . . . . . . . . . . . . . . . . . . . . . . . . . . 3 . . . . Machine Destruction 3 | . . . . . . . . . . . . . . . . . . . . . . . . . . . . . . . . . . . 3 . . . . Robots Rewired 5 | . . . . . . . . . . . . . . . . . . . . . . . . . 5 . . . . . . . . . . . . . . Allies Hacked 1 | . . . . . . . . . . . . . . . . . . . . . . . . . 1 . . . . . . . . . . . . . . Hacks Repelled 1 | . . . . . . . . . . . . . . . . . . . . . . . . . 1 . . . . . . . . . . . . . . Allies | -11 -10 -10 -10 -9 -8 -8 -7 -7 -7 -7 -7 -6 -6 -6 -6 -6 -6 -6 -5 -5 -5 -5 -5 -5 -5 -4 -4 -4 -4 -4 -3 -3 -3 -3 -2 -2 -1 -1 -1 -------- Run | Scr Mat Min Exi Min Mat Sto Fac Low Low Zio Dee Pro Fac Was Fac Low Low Dat Pro Fac Was Fac Upp Upp War Pro Fac Upp Upp Zhi Pro Res Qua Sec Res Tes Acc Com Ac0 Total Allies 24 | . 1 . . . . . 4 . . 7 . . 1 . 1 . . . . . 1 . . . 5 . . . . . . . 1 1 . . 2 . . Largest Group 7 | . 1 1 1 1 1 . 3 . . 7 6 . 1 . 1 . . . . . 1 . . . 5 . . . . . . . 1 1 . . 1 . . Highest-Rated Group 298 | . 10 9 9 9 9 . 93 . . 298 273 . 10 . 10 . . . . . 31 . . . 234 . . . . . . . 10 10 . . 44 . . Highest-Rated Ally 94 | . 10 9 9 9 9 . 31 . . 94 94 . 10 . 10 . . . . . 31 . . . 49 . . . . . . . 10 10 . . 44 . . Total Orders 10 | . . . 2 . . . . . . . . . . . . . . . . . . . . . 3 . . . . . . . 4 . . . 1 . . STAY 6 | . . . 1 . . . . . . . . . . . . . . . . . . . . . 2 . . . . . . . 2 . . . 1 . . FOLLOW 4 | . . . 1 . . . . . . . . . . . . . . . . . . . . . 1 . . . . . . . 2 . . . . . . Ally Attacks 66 | . . . . . . . 21 . . . 31 . . . . . . . . . . . . . 14 . . . . . . . . . . . . . . Total Damage 1576 | . . . . . . . 366 . . . 869 . . . . . . . . . . . . . 341 . . . . . . . . . . . . . . Kills 8 | . . . . . . . 2 . . . 5 . . . . . . . . . . . . . 1 . . . . . . . . . . . . . . Allies Corrupted 1 | . . . . . . . . . . . 1 . . . . . . . . . . . . . . . . . . . . . . . . . . . . Allies Melted . | . . . . . . . . . . . . . . . . . . . . . . . . . . . . . . . . . . . . . . . . Intel | -11 -10 -10 -10 -9 -8 -8 -7 -7 -7 -7 -7 -6 -6 -6 -6 -6 -6 -6 -5 -5 -5 -5 -5 -5 -5 -4 -4 -4 -4 -4 -3 -3 -3 -3 -2 -2 -1 -1 -1 ------- Run | Scr Mat Min Exi Min Mat Sto Fac Low Low Zio Dee Pro Fac Was Fac Low Low Dat Pro Fac Was Fac Upp Upp War Pro Fac Upp Upp Zhi Pro Res Qua Sec Res Tes Acc Com Ac0 Robot Analysis Total 9 | . 2 . . . . . . . . . . . . . . . . . . . . . . . . . . . . 4 . . 2 1 . . . . . Derelict Logs Recovered 9 | . . . . 1 . . . 1 1 1 . . . . . 1 . . 1 . . . 1 . . . . 1 1 . . . . . . . . . . Drone Launches . | . . . . . . . . . . . . . . . . . . . . . . . . . . . . . . . . . . . . . . . . Drone Recoveries . | . . . . . . . . . . . . . . . . . . . . . . . . . . . . . . . . . . . . . . . . Exploration | -11 -10 -10 -10 -9 -8 -8 -7 -7 -7 -7 -7 -6 -6 -6 -6 -6 -6 -6 -5 -5 -5 -5 -5 -5 -5 -4 -4 -4 -4 -4 -3 -3 -3 -3 -2 -2 -1 -1 -1 ------------- Run | Scr Mat Min Exi Min Mat Sto Fac Low Low Zio Dee Pro Fac Was Fac Low Low Dat Pro Fac Was Fac Upp Upp War Pro Fac Upp Upp Zhi Pro Res Qua Sec Res Tes Acc Com Ac0 Turns Passed 30927 | 71 1249 132 4022 222 2655 1580 1084 315 101 803 1839 125 563 15 483 169 15 61 228 946 13 334 160 90 952 54 782 324 80 428 88 490 849 1182 1031 1027 1025 3739 1601 Spaces Moved 38801 | 38 578 78 1980 111 931 561 2045 379 253 1213 2651 323 1119 77 803 359 45 119 411 1471 59 630 467 400 1658 220 1780 335 305 230 238 1156 1171 2040 2420 955 1718 3989 3485 Core 366 | . . . . . . . . . . . . . . . . . . . . . . . . . 1 . . . . . . . . . . . . 365 . Treads 4251 | 12 578 78 1980 111 931 561 . . . . . . . . . . . . . . . . . . . . . . . . . . . . . . . . . Legs 26 | 26 . . . . . . . . . . . . . . . . . . . . . . . . . . . . . . . . . . . . . . . Wheels . | . . . . . . . . . . . . . . . . . . . . . . . . . . . . . . . . . . . . . . . . Hover . | . . . . . . . . . . . . . . . . . . . . . . . . . . . . . . . . . . . . . . . . Flight 34158 | . . . . . . . 2045 379 253 1213 2651 323 1119 77 803 359 45 119 411 1471 59 630 467 400 1657 220 1780 335 305 230 238 1156 1171 2040 2420 955 1718 3624 3485 Fastest Speed 17 | 120 160 160 160 200 200 205 32 37 34 34 18 18 18 17 17 17 34 34 34 22 22 22 22 22 22 22 22 22 22 22 32 32 32 29 29 27 27 27 27 Average Speed 55 | 132 171 160 189 200 233 211 33 37 36 61 43 34 35 17 33 33 34 34 35 30 22 26 22 22 22 22 22 96 25 53 32 32 46 30 29 61 36 60 27 Slowest Speed 400 | 160 180 160 240 200 240 245 102 37 37 105 102 37 102 17 34 34 34 34 168 34 22 112 22 22 112 22 112 112 112 112 32 32 102 32 99 167 97 400 27 Overloaded Moves . | . . . . . . . . . . . . . . . . . . . . . . . . . . . . . . . . . . . . . . . . Propulsion Burnouts . | . . . . . . . . . . . . . . . . . . . . . . . . . . . . . . . . . . . . . . . . Robots Hopped 117 | . . . . . . . 14 . . . 1 . 2 . 10 . . 2 . 11 . 1 . . 8 . 24 . . . . 13 5 6 2 . 11 7 . Cave-ins Triggered 1 | . . . . . . . . . . . . . . . . . . . . . . . . . . . . . . . . . . . . 1 . . . Teleports 2 | . . . . . . . . . . . . . . . . . . . . . . . . . . . . . . . . . 1 . . . . 1 . Exploration Rate (%) 59 | 3 87 24 91 31 77 63 55 67 48 86 88 43 27 75 20 63 10 77 55 36 85 17 70 72 93 55 47 62 67 61 42 29 89 77 61 83 48 84 95 Regions Visited 39 Branch Regions 26 Pre-discovered Areas 12 | . . . 1 . 1 1 . . 1 2 . . . . . 1 . 1 . . . . . . . . . 1 . 3 . . . . . . . . . Known Exits Taken 28 | . . . . . 1 . 1 1 1 1 1 1 . . 1 1 1 1 1 . . 1 1 1 1 1 1 1 1 1 1 1 1 1 1 1 1 . . Unknown Exits Taken 7 | 1 1 1 1 1 . 1 . . . . . . . . . . . . . . . . . . . . . . . . . . . . . . . 1 . Scrap Searched 23 | . . . . 1 . . . 5 2 2 . . . . . 2 . . . . . . 2 2 . . . 4 2 . 1 . . . . . . . . Spaces Dug 491 | . 13 9 18 . 24 . 22 10 . . 52 . 33 . 20 3 . . 13 28 . 14 10 . 3 14 42 . . . . 12 17 21 59 7 27 17 3 Terrain Destroyed 1576 | . 45 21 77 . 200 . 58 10 . . 184 . 33 . 20 20 . . 36 28 . 16 21 . 104 14 81 . . . . 81 23 21 279 82 33 86 3 Melee 242 | . . . . . . . 15 10 . . 1 . 17 . 19 1 . . 1 28 . 11 6 . 3 . 30 . . . . 9 7 19 14 5 26 17 3 Projectile 159 | . . . 37 . . . . . . . 15 . 16 . 1 2 . . . . . 5 4 . 34 . 18 . . . . 5 16 2 1 2 1 . . AOE 1175 | . 45 21 40 . 200 . 43 . . . 168 . . . . 17 . . 35 . . . 11 . 67 14 33 . . . . 67 . . 264 75 6 69 . Terrain Rammed . | . . . . . . . . . . . . . . . . . . . . . . . . . . . . . . . . . . . . . . . . Walls Destroyed . | . . . . . . . . . . . . . . . . . . . . . . . . . . . . . . . . . . . . . . . . Machines Disabled . | . . . . . . . . . . . . . . . . . . . . . . . . . . . . . . . . . . . . . . . . Actions | -11 -10 -10 -10 -9 -8 -8 -7 -7 -7 -7 -7 -6 -6 -6 -6 -6 -6 -6 -5 -5 -5 -5 -5 -5 -5 -4 -4 -4 -4 -4 -3 -3 -3 -3 -2 -2 -1 -1 -1 --------- Run | Scr Mat Min Exi Min Mat Sto Fac Low Low Zio Dee Pro Fac Was Fac Low Low Dat Pro Fac Was Fac Upp Upp War Pro Fac Upp Upp Zhi Pro Res Qua Sec Res Tes Acc Com Ac0 Total 46074 | 47 744 85 2227 111 1203 891 2378 541 258 1266 3244 336 1218 77 952 398 44 128 462 1836 58 746 498 401 2124 223 2039 334 306 529 243 1214 1394 2461 2647 1266 1983 5184 3978 Wait 4091 | . 55 1 74 . 53 187 197 149 . 38 381 11 26 . 76 20 . . 18 298 . 79 7 2 324 . 131 . . 246 3 21 114 247 122 156 138 877 40 Move 38544 | 37 577 77 1979 110 930 560 2017 378 252 1212 2648 322 1115 76 784 358 44 114 410 1452 58 627 466 399 1644 219 1732 334 304 229 237 1132 1160 2027 2416 953 1695 3975 3485 Hop 102 | . . . . . . . 13 . . . 1 . 2 . 8 . . 2 . 8 . 1 . . 5 . 23 . . . . 10 5 6 1 . 11 6 . Pick Up 363 | . 22 1 66 . 34 21 3 . 1 3 22 1 10 . 4 2 . 3 1 4 . 2 2 . 3 1 18 . 1 10 . 6 11 23 16 9 7 37 19 Fast Attach 207 | . 3 . 15 . 6 10 5 1 . 4 19 . 2 . 1 2 . . 6 5 . 1 . . 9 . 6 . . 10 . 3 7 16 7 12 11 22 24 Attach 207 | . 1 1 9 . 8 6 19 . . . 24 . 2 . . 3 . . 1 2 . . . . 4 . 9 . . 4 . 3 6 15 9 19 17 27 18 Detach 162 | . 1 . 8 . 7 3 9 . . 2 24 . 2 . . 2 . . . . . . . . 3 . 5 . . 2 . 1 4 9 8 18 17 20 17 Swap 238 | 2 29 1 5 . 23 14 16 3 2 2 14 1 13 1 4 2 . 1 4 1 . 6 6 . 9 1 7 . . . . 6 7 14 1 3 . 27 13 Drop 444 | 2 11 2 38 . 20 33 34 . 1 5 43 1 9 . 4 3 . 3 6 4 . 3 2 . 12 1 15 . 1 22 . 5 13 24 13 17 7 53 37 Fire 622 | 6 45 2 25 . 107 54 4 . . . 45 . 16 . 1 4 . 1 7 1 . 6 6 . 74 1 23 . . . . 9 56 20 11 13 36 19 30 Melee 966 | . . . . . . . 61 10 2 . 23 . 21 . 24 2 . 4 9 61 . 21 9 . 10 . 43 . . 6 3 18 11 60 43 65 44 121 295 Ram . | . . . . . . . . . . . . . . . . . . . . . . . . . . . . . . . . . . . . . . . . Kick . | . . . . . . . . . . . . . . . . . . . . . . . . . . . . . . . . . . . . . . . . Crush 27 | . . . 8 1 15 3 . . . . . . . . . . . . . . . . . . . . . . . . . . . . . . . . . Escape Stasis 74 | . . . . . . . . . . . . . . . 46 . . . . . . . . . . . 27 . . . . . . . . 1 . . . Rewire 27 | . . . . . . . . . . . . . . . . . . . . . . . . . 27 . . . . . . . . . . . . . . Trap . | . . . . . . . . . . . . . . . . . . . . . . . . . . . . . . . . . . . . . . . . Miscellaneous . | . . . . . . . . . . . . . . . . . . . . . . . . . . . . . . . . . . . . . . . . Route ------- -11/Scrapyard -10/Materials (discovered 3 exits: [*Mat x2] / [*Min]) -10/Mines -10/Exiles -9/Mines -8/Materials (discovered 3 exits: *Fac x2 / *Sto) -8/Storage -7/Factory (discovered 4 exits: *Fac x2 / *Low x2) -7/Lower Caves -7/Lower Caves -7/Zion (discovered 2 exits: *Dee / [*Pro]) -7/Deep Caves -6/Proximity Caves -6/Factory (discovered 2 exits: *Fac / *Low) -6/Waste -6/Factory (discovered 2 exits: *Low x2) -6/Lower Caves -6/Lower Caves -6/Data Miner -5/Proximity Caves -5/Factory (discovered 2 exits: *Fac / *Upp) -5/Waste -5/Factory (discovered 2 exits: *Upp x2) -5/Upper Caves -5/Upper Caves (discovered 2 exits: *Fac / *War) -5/Warlord -4/Proximity Caves -4/Factory (discovered 6 exits: *Res / *Upp x2 / Ext x2 / Arm) -4/Upper Caves -4/Upper Caves -4/Zhirov -3/Proximity Caves -3/Research (discovered 2 exits: *Qua x2) -3/Quarantine (discovered 2 exits: *Res / *Sec) -3/Section 7 -2/Research (discovered 3 exits: *Acc / *Tes x2) -2/Testing -1/Access -1/Command (discovered 2 exits: [*Sur] / *Ac0) -1/Access_0 Subspace History --------- Turn | Location | Event 1 | -11/Scrapyard | Discovered new exit (range 3) 72 | -11/Scrapyard | Entered Materials 303 | -10/Materials | Build established: Mutant 773 | -10/Materials | Discovered new exit (range 4) 869 | -10/Materials | Discovered new exit (range 11) 1083 | -10/Materials | Repaired Lgt. Treads 1110 | -10/Materials | Repaired Lgt. Treads 1194 | -10/Materials | Discovered new exit (range 16) 1321 | -10/Materials | Entered Mines 1321 | -10/Mines | Accompanied by 1 ally 1342 | -10/Mines | Found a damaged Exp. Sensor Array with a note attached 1347 | -10/Mines | Found Prototype Device 1443 | -10/Mines | Deemed a non-threat by the Exiles lab entrance 1444 | -10/Mines | Discovered new exit (range 5) 1453 | -10/Mines | Entered Exiles 1453 | -10/Exiles | Accompanied by 1 ally 1492 | -10/Exiles | Met 8R-AWN 1519 | -10/Exiles | Met EX-HEX 1597 | -10/Exiles | Met EX-DEC 1629 | -10/Exiles | Learned location of Zion (-7) 1820 | -10/Exiles | Discovered new exit (range 15) 2000 | -10/Exiles | Build established: Hauler-Mutant 2214 | -10/Exiles | Met EX-BIN 2241 | -10/Exiles | Aligned with FarCom system 2243 | -10/Exiles | Given EX-Vault access code 2289 | -10/Exiles | Opened EX-Vault 2303 | -10/Exiles | Found Army-in-a-Box 2315 | -10/Exiles | Found AWS/Gauss 2318 | -10/Exiles | Found AWS/Thermal 2359 | -10/Exiles | Warned to stay clear of 0b10 Research branches 3123 | -10/Exiles | Attacked by the Exiles 3226 | -10/Exiles | Core integrity fell below 50% 3260 | -10/Exiles | Destroyed 8R-AWN 3276 | -10/Exiles | Lost 3 parts (1p2n) 4000 | -10/Exiles | Destroyed EX-DEC 4055 | -10/Exiles | Destroyed EX-HEX 4057 | -10/Exiles | Destroyed EX-BIN 4081 | -10/Exiles | Found Prototype Device 4081 | -10/Exiles | Identified System Purifier 4105 | -10/Exiles | Build established: Mutant 4670 | -10/Exiles | Build established: Hauler-Mutant 4705 | -10/Exiles | Found Deploy-a-Sentry 5475 | -10/Exiles | Stole two prototypes: AWS/Thermal, Deploy-a-Sentry 5475 | -10/Exiles | Entered Mines 5475 | -9/Mines | Accompanied by 1 ally 5587 | -9/Mines | Learned location of 1 exit from Lower Caves 5637 | -9/Mines | Found a hidden stash of uninstalled traps 5691 | -9/Mines | Discovered new exit (range 3) 5697 | -9/Mines | Entered Materials 5697 | -8/Materials | Accompanied by 1 ally 5697 | -8/Materials | Evolved 4 slots: Utility x4 6006 | -8/Materials | Discovered new exit (range 15) 6524 | -8/Materials | Discovered new exit (range 7) 6897 | -8/Materials | First assault squad dispatched 6926 | -8/Materials | Identified exit to Storage 8352 | -8/Materials | Entered Storage 8408 | -8/Storage | Repaired Adv. Treads 9513 | -8/Storage | Discovered new exit (range 16) 9642 | -8/Storage | Found Prototype Protection 9642 | -8/Storage | Identified Lgt. Regenerative Plating 9806 | -8/Storage | Repaired Adv. Weight Redist. System 9845 | -8/Storage | Repaired Adv. Weight Redist. System 9932 | -8/Storage | Entered Factory 9932 | -7/Factory | Evolved 2 slots: Utility x2 9947 | -7/Factory | Identified Exp. Sensor Array 10245 | -7/Factory | Repaired Exp. Sensor Array? 10246 | -7/Factory | Build established: Hacker-Sprinter 10308 | -7/Factory | Identified exit to Lower Caves 10338 | -7/Factory | Discovered new exit (range 5) 10362 | -7/Factory | Allied Derelicts emerged from ambush trap array 10580 | -7/Factory | Discovered new exit (range 8) 10674 | -7/Factory | Fabricated Adv. Signal Interpreter (x2) 10796 | -7/Factory | Fabricated Biomechanical Wings (x1) 10819 | -7/Factory | Fabricated Biomechanical Wings (x1) 10842 | -7/Factory | Build established: Hacker-Scout 11016 | -7/Factory | Entered Lower Caves 11017 | -7/Lower Caves | Identified exit to Lower Caves 11105 | -7/Lower Caves | Learned Factory emergency access door positions 11331 | -7/Lower Caves | Entered another Lower Caves area 11389 | -7/Lower Caves | Encountered a Warlord checkpoint 11416 | -7/Lower Caves | Spotted OG-VJ9(f) 11416 | -7/Lower Caves | Spotted J8-3U3(f) 11416 | -7/Lower Caves | Spotted 5S-J3D(f) 11417 | -7/Lower Caves | Encountered a Master Thief 11417 | -7/Lower Caves | Encountered a Master Thief 11418 | -7/Lower Caves | Encountered a Master Thief 11419 | -7/Lower Caves | Spotted IX-TSI(f) 11422 | -7/Lower Caves | Encountered a Master Thief 11430 | -7/Lower Caves | Discovered new exit (range 7) 11432 | -7/Lower Caves | Identified exit to Zion 11432 | -7/Lower Caves | Entered Zion 11440 | -7/Zion | Learned Factory trap positions 11446 | -7/Zion | Discovered new exit (range 13) 11462 | -7/Zion | Given the Hacking Drone Bay 11477 | -7/Zion | Gained Derelict followers 11496 | -7/Zion | Learned location of Data Miner (-6) 11512 | -7/Zion | Given A8's code to call for help 11521 | -7/Zion | Found CR-A16's Pointy Stick 11539 | -7/Zion | Learned location of Warlord (-5) 11610 | -7/Zion | Acquired unknown access codes intercepted by a Zionite 11632 | -7/Zion | Received a hallucinogenic algorithm 11855 | -7/Zion | Found Prototype Device 11987 | -7/Zion | Build established: Hacker-Mutant 12164 | -7/Zion | Opened final containment barrier to the Deep Caves 12180 | -7/Zion | Discovered new exit (range 3) 12180 | -7/Zion | Saw the warning signs outside the Deep Caves entrance 12197 | -7/Zion | Enhanced Grunt warped into view, answering call for help 12206 | -7/Zion | Enhanced Grunt warped into view, answering call for help 12216 | -7/Zion | Identified exit to Deep Caves 12235 | -7/Zion | Entered Deep Caves 12235 | -7/Deep Caves | Accompanied by 7 allies 12396 | -7/Deep Caves | Attacked by Z-Imprinter 12401 | -7/Deep Caves | Build established: Derelict-Mutant 12413 | -7/Deep Caves | Destroyed Z-Imprinter 12424 | -7/Deep Caves | Found Prototype Device 12425 | -7/Deep Caves | Identified Zio. Metafield Generator 12466 | -7/Deep Caves | Found Prototype Protection 12466 | -7/Deep Caves | Identified Zio. Weapon Casing 12620 | -7/Deep Caves | Z-Facility disabled 12695 | -7/Deep Caves | Found Prototype Device 12695 | -7/Deep Caves | Identified Exp. Thermal Shield 12876 | -7/Deep Caves | Build established: Mutant 13352 | -7/Deep Caves | Discovered new exit (range 7) 13354 | -7/Deep Caves | Identified exit to Proximity Caves 13380 | -7/Deep Caves | Spotted as-57308 13782 | -7/Deep Caves | Exposed GOLEM chamber 13790 | -7/Deep Caves | Found GOLEM Unit 13794 | -7/Deep Caves | Found GOLEM Unit 14074 | -7/Deep Caves | Entered Proximity Caves 14074 | -6/Proximity Caves | Spotted B-75 Beast 14176 | -6/Proximity Caves | Discovered new exit (range 14) 14199 | -6/Proximity Caves | Identified exit to Factory 14199 | -6/Proximity Caves | Entered Factory 14199 | -6/Factory | Evolved 2 slots: Utility x2 14200 | -6/Factory | Loaded intel: 96 trap records 14225 | -6/Factory | Found Prototype Processor 14242 | -6/Factory | Discovered new exit (range 15) 14246 | -6/Factory | Identified exit to Lower Caves 14313 | -6/Factory | Fabricated Gravity Neutralizing Apparatus (x1) 14518 | -6/Factory | Fabricated Powered Armor? 14534 | -6/Factory | Discovered new exit (range 8) 14536 | -6/Factory | Identified exit to Factory 14625 | -6/Factory | Fabricated Gravity Neutralizing Apparatus? 14692 | -6/Factory | Build established: Hacker-Mutant 14762 | -6/Factory | Manually triggered Chute Trap 14762 | -6/Factory | Sucked down chute 14762 | -6/Factory | Entered Waste 14768 | -6/Waste | Spotted C-40 Crusher 14769 | -6/Waste | Spotted C-40 Crusher 14770 | -6/Waste | Spotted C-40 Crusher 14772 | -6/Waste | Spotted C-40 Crusher 14772 | -6/Waste | Spotted C-40 Crusher 14773 | -6/Waste | Spotted C-40 Crusher 14775 | -6/Waste | Discovered new exit (range 10) 14777 | -6/Waste | EMP discharged 14777 | -6/Waste | Identified exit to Factory 14777 | -6/Waste | Entered Factory 15260 | -6/Factory | Entered Lower Caves 15260 | -6/Lower Caves | Spotted 7N-LBG(f) 15261 | -6/Lower Caves | Encountered a Master Thief 15284 | -6/Lower Caves | Zio. Metafield Generator stolen by Master Thief 15290 | -6/Lower Caves | Attracted the attention of an 0b10 outpost 15399 | -6/Lower Caves | Encountered a Warlord checkpoint 15424 | -6/Lower Caves | Discovered new exit (range 3) 15425 | -6/Lower Caves | Identified exit to Lower Caves 15429 | -6/Lower Caves | Entered another Lower Caves area 15430 | -6/Lower Caves | Encountered a Warlord checkpoint 15439 | -6/Lower Caves | Discovered new exit (range 7) 15444 | -6/Lower Caves | Identified exit to Data Miner 15444 | -6/Lower Caves | Entered Data Miner 15444 | -6/Data Miner | Discovered new exit (range 6) 15451 | -6/Data Miner | Met Data Miner 15457 | -6/Data Miner | Learned location of Section 7 (-3) 15457 | -6/Data Miner | Acquired the access code to Warlord's prototype stash 15463 | -6/Data Miner | Received God Mode back door access code from Data Miner 15476 | -6/Data Miner | Destroyed Data Miner 15479 | -6/Data Miner | Found Prototype Hackware 15481 | -6/Data Miner | Found Prototype Hackware 15485 | -6/Data Miner | Data Conduit disabled 15505 | -6/Data Miner | Identified exit to Proximity Caves 15505 | -6/Data Miner | Entered Proximity Caves 15561 | -5/Proximity Caves | Build established: Machinist-Mutant 15599 | -5/Proximity Caves | Found Imp. Powered Armor 15682 | -5/Proximity Caves | Learned Factory terminal intel 15729 | -5/Proximity Caves | Discovered exit to Factory (range 12) 15733 | -5/Proximity Caves | Entered Factory 15733 | -5/Factory | Evolved 2 slots: Utility x2 15733 | -5/Factory | Identified Quantum Router 15734 | -5/Factory | Loaded intel: 20 terminal locations 15734 | -5/Factory | Identified Deep Network Scanner 16021 | -5/Factory | Build established: Wizard-Mutant 16071 | -5/Factory | Discovered new exit (range 5) 16073 | -5/Factory | Identified exit to Upper Caves 16150 | -5/Factory | Imp. Hacking Suite fried by hacking feedback 16152 | -5/Factory | Discovered new exit (range 14) 16225 | -5/Factory | Fabricated Exp. Cesium-ion Thruster? 16313 | -5/Factory | Fabricated Exp. Cesium-ion Thruster (x1) 16321 | -5/Factory | Fabricated Exp. Signal Interpreter (x1) 16358 | -5/Factory | Fabricated Exp. Cesium-ion Thruster? 16514 | -5/Factory | Repaired Broken Gravity Neutralizing Apparatus 16630 | -5/Factory | Local fabrication network quarantined 16679 | -5/Factory | Manually triggered Chute Trap 16679 | -5/Factory | Sucked down chute 16679 | -5/Factory | Entered Waste 16680 | -5/Waste | Met a frightened Derelict 16683 | -5/Waste | Spotted C-40 Crusher 16683 | -5/Waste | Spotted C-40 Crusher 16683 | -5/Waste | Spotted C-40 Crusher 16687 | -5/Waste | Spotted C-40 Crusher 16688 | -5/Waste | Discovered new exit (range 22) 16688 | -5/Waste | Spotted C-40 Crusher 16691 | -5/Waste | Spotted C-40 Crusher 16692 | -5/Waste | Identified exit to Factory 16692 | -5/Waste | Entered Factory 16846 | -5/Factory | Repaired Broken Gravity Neutralizing Apparatus 16886 | -5/Factory | Spotted B-75 Beast 16979 | -5/Factory | Fabricated Adv. Hacking Suite? 17026 | -5/Factory | Entered Upper Caves 17110 | -5/Upper Caves | Learned Factory terminal intel 17158 | -5/Upper Caves | Discovered new exit (range 11) 17159 | -5/Upper Caves | Build established: Wizard-Scout 17186 | -5/Upper Caves | Identified exit to Upper Caves 17186 | -5/Upper Caves | Entered another Upper Caves area 17186 | -5/Upper Caves | Spotted QO-Y7C(f) 17187 | -5/Upper Caves | Encountered a Master Thief 17190 | -5/Upper Caves | Spotted WA-5JA(f) 17191 | -5/Upper Caves | Encountered a Master Thief 17194 | -5/Upper Caves | Discovered new exit (range 7) 17197 | -5/Upper Caves | Attracted the attention of an 0b10 checkpoint 17256 | -5/Upper Caves | Discovered new exit (range 16) 17276 | -5/Upper Caves | Identified exit to Warlord 17276 | -5/Upper Caves | Entered Warlord 17293 | -5/Warlord | Received a Watcher feed algorithm from an ecstatic Tinkerer 17340 | -5/Warlord | Met Warlord 17343 | -5/Warlord | Opened Warlord's prototype stash 17351 | -5/Warlord | Found Prototype Device 17351 | -5/Warlord | Identified Exp. Phase Shifter 17359 | -5/Warlord | Found Prototype Device 17359 | -5/Warlord | Identified Thermal Barrier 17365 | -5/Warlord | Warlord's base attacked by MAIN.C 17365 | -5/Warlord | Found Prototype Processor 17365 | -5/Warlord | Identified Spectral Analyzer 17510 | -5/Warlord | P-80 Master assimilated allied CT-WIE(b) 17518 | -5/Warlord | P-70 Sage assimilated allied Sentinel 6a 17655 | -5/Warlord | Warlord forces counterattacked 17685 | -5/Warlord | Spotted Striker 17686 | -5/Warlord | Spotted B-86 Titan 17692 | -5/Warlord | Spotted Striker 17765 | -5/Warlord | Spotted B-86 Titan 17765 | -5/Warlord | Spotted Executioner 17766 | -5/Warlord | Spotted Striker 17766 | -5/Warlord | Destroyed B-86 Titan 17989 | -5/Warlord | Spotted B-86 Titan 17993 | -5/Warlord | Spotted B-75 Beast 18005 | -5/Warlord | Spotted Executioner 18087 | -5/Warlord | Spotted Striker 18127 | -5/Warlord | Spotted Striker 18178 | -5/Warlord | Spotted Striker 18185 | -5/Warlord | Spotted Executioner 18187 | -5/Warlord | Destroyed Striker 18224 | -5/Warlord | Discovered new exit (range 22) 18228 | -5/Warlord | Identified exit to Proximity Caves 18228 | -5/Warlord | Entered Proximity Caves 18251 | -4/Proximity Caves | Destroyed 12 combat bots 18279 | -4/Proximity Caves | Discovered new exit (range 12) 18281 | -4/Proximity Caves | Identified exit to Factory 18282 | -4/Proximity Caves | Entered Factory 18282 | -4/Factory | Evolved 2 slots: Utility x2 18283 | -4/Factory | Loaded intel: 21 terminal locations 18418 | -4/Factory | Repaired Gravity Neutralizing Apparatus 18448 | -4/Factory | Repaired Imp. Powered Armor 18623 | -4/Factory | Spotted B-86 Titan 18630 | -4/Factory | Spotted B-86 Titan 18673 | -4/Factory | Identified exit to Upper Caves 18673 | -4/Factory | Identified exit to Extension 18673 | -4/Factory | Identified exit to Armory 18709 | -4/Factory | Repaired Imp. Powered Armor? 18711 | -4/Factory | Discovered new exit (range 9) 18767 | -4/Factory | Fabricated Adv. Hacking Suite? 18807 | -4/Factory | Found Prototype Hackware 18825 | -4/Factory | Fabricated Adv. Hacking Suite? 18885 | -4/Factory | Identified Exp. Hacking Suite 18930 | -4/Factory | Fabricated Mni. Fusion Reactor? 19064 | -4/Factory | Entered Upper Caves 19319 | -4/Upper Caves | Discovered new exit (range 22) 19359 | -4/Upper Caves | Identified exit to Upper Caves 19380 | -4/Upper Caves | Build established: Wizard-Assassin 19388 | -4/Upper Caves | Entered another Upper Caves area 19462 | -4/Upper Caves | Spotted HN-SX9(f) 19463 | -4/Upper Caves | Encountered a Master Thief 19464 | -4/Upper Caves | Spotted 8J-AVO(f) 19465 | -4/Upper Caves | Discovered new exit (range 14) 19467 | -4/Upper Caves | Identified exit to Zhirov 19468 | -4/Upper Caves | Entered Zhirov 19468 | -4/Zhirov | Discovered new exit (range 3) 19472 | -4/Zhirov | Met Zhirov 19477 | -4/Zhirov | Learned location of Quarantine (-3) 19477 | -4/Zhirov | Learned location of Testing (-2) 19477 | -4/Zhirov | Learned location of Command (-1) 19479 | -4/Zhirov | Zhirov requested help retrieving the SGEMP Prototype 19484 | -4/Zhirov | Found Alien Artifact 19484 | -4/Zhirov | Identified Integrated Dissipator 19484 | -4/Zhirov | Installed Integrated Dissipator, increased core heat dissipation (+20) 19793 | -4/Zhirov | Found Alien Artifact 19895 | -4/Zhirov | Identified exit to Proximity Caves 19896 | -4/Zhirov | Entered Proximity Caves 19980 | -3/Proximity Caves | Discovered new exit (range 12) 19984 | -3/Proximity Caves | Identified exit to Research 19984 | -3/Proximity Caves | Entered Research 19984 | -3/Research | Evolved 2 slots: Utility x2 20158 | -3/Research | Found Prototype Launcher 20172 | -3/Research | Identified Tactical Quantum Warhead 20180 | -3/Research | Fabricated Inertial Stasis Machine? 20194 | -3/Research | Identified exit to Quarantine 20195 | -3/Research | Build established: Wizard-Sprinter 20357 | -3/Research | Spotted B-86 Titan 20425 | -3/Research | Spotted B-86 Titan 20474 | -3/Research | Entered Quarantine 20488 | -3/Quarantine | Found Alien Artifact 20524 | -3/Quarantine | Found Alien Artifact 20524 | -3/Quarantine | Identified Dimensional Node Initializer 20524 | -3/Quarantine | Initialized slip node 20660 | -3/Quarantine | Discovered new exit (range 7) 20665 | -3/Quarantine | Identified exit to Research 20851 | -3/Quarantine | Cryocooling Duct disabled 20866 | -3/Quarantine | Ambient heat levels rising (+20) 20866 | -3/Quarantine | Non-combat units ordered to evacuate 20885 | -3/Quarantine | Repaired Imp. Powered Armor 20982 | -3/Quarantine | Found Alien Slashing Weapon 20982 | -3/Quarantine | Identified Sigix Broadsword 20997 | -3/Quarantine | Central database locked down 21009 | -3/Quarantine | Identified Transdimensional Reconstructor 21009 | -3/Quarantine | Identified Subatomic Replicator 21106 | -3/Quarantine | Warped through subspace to slip node 21112 | -3/Quarantine | Found Alien Artifact 21119 | -3/Quarantine | Found Alien Artifact 21212 | -3/Quarantine | Found Exp. Melee Analysis Suite 21231 | -3/Quarantine | Identified Hpw. Transdimensional Reconstructor 21231 | -3/Quarantine | Identified Core Reset Matrix 21297 | -3/Quarantine | Spotted Fortress 21322 | -3/Quarantine | Discovered new exit (range 6) 21323 | -3/Quarantine | Identified exit to Section 7 21323 | -3/Quarantine | Entered Section 7 21341 | -3/Section 7 | Spotted S7 Guard 21347 | -3/Section 7 | Found Alien Artifact 21347 | -3/Section 7 | Identified Core Membrane 21347 | -3/Section 7 | Installed Core Membrane, gained immunity to corruption 21375 | -3/Section 7 | Destroyed S7 Guard 21394 | -3/Section 7 | Found Prototype Protection 21394 | -3/Section 7 | Identified Hvy. Regenerative Plating 21413 | -3/Section 7 | Spotted S7 Guard 21419 | -3/Section 7 | Found Alien Artifact 21442 | -3/Section 7 | Identified Integrated Heat Negator 21448 | -3/Section 7 | Installed Integrated Heat Negator, increased core heat dissipation (+40) 21481 | -3/Section 7 | Spotted S7 Guard 21483 | -3/Section 7 | Found Alien Artifact 21493 | -3/Section 7 | Identified Integrated Singularity Reactor 21493 | -3/Section 7 | Used Subatomic Replicator to replicate Integrated Singularity Reactor 21495 | -3/Section 7 | Installed Integrated Singularity Reactor, increased core energy generation (+20) 21497 | -3/Section 7 | Installed Integrated Singularity Reactor, increased core energy generation (+20) 21525 | -3/Section 7 | Found Alien Artifact 21582 | -3/Section 7 | Found Alien Artifact 21672 | -3/Section 7 | Identified Integrity Redistributor 21672 | -3/Section 7 | Identified Integrated Reactor 21672 | -3/Section 7 | Installed Integrated Reactor, increased core energy generation (+10) 21718 | -3/Section 7 | Found Antimissile System 21730 | -3/Section 7 | Central database locked down 22016 | -3/Section 7 | Spotted S7 Guard 22027 | -3/Section 7 | Found Alien Artifact 22033 | -3/Section 7 | Identified Core Regenerator 22033 | -3/Section 7 | Used Core Regenerator, restored core integrity (+201) 22145 | -3/Section 7 | Found Alien Energy Gun 22178 | -3/Section 7 | Identified Sigix Quantum Sheargun 22234 | -3/Section 7 | Spotted B-99 Colossus 22253 | -3/Section 7 | Found Alien Artifact 22253 | -3/Section 7 | Identified LRC Energy Well 22253 | -3/Section 7 | Installed LRC Energy Well, increased energy storage capacity (+250) 22256 | -3/Section 7 | Found Alien Artifact 22256 | -3/Section 7 | Identified LRC Boosters 22256 | -3/Section 7 | Installed LRC Boosters, increased mass support (+10) 22297 | -3/Section 7 | Found Alien Artifact 22424 | -3/Section 7 | Found Integrated Reactor 22450 | -3/Section 7 | Installed Integrated Reactor, increased core energy generation (+10) 22452 | -3/Section 7 | Found Integrated Dissipator 22452 | -3/Section 7 | Installed Integrated Dissipator, increased core heat dissipation (+20) 22505 | -3/Section 7 | Entered Research 22505 | -2/Research | Warlord forces began assault on 0b10 22505 | -2/Research | Evolved 2 slots: Utility x2 22506 | -2/Research | Identified exit to Testing 22559 | -2/Research | Repaired Inertial Stasis Machine 22615 | -2/Research | Research machine network offline 22812 | -2/Research | Found Quantum Capacitor 22830 | -2/Research | Spotted Striker 22833 | -2/Research | Spotted Striker 22961 | -2/Research | Found Prototype Launcher 22962 | -2/Research | Found Prototype Launcher 22964 | -2/Research | Found Prototype Launcher 23174 | -2/Research | Build established: Wizard-Ninja 23188 | -2/Research | Spotted Executioner 23196 | -2/Research | Found Prototype Processor 23196 | -2/Research | Identified Exp. Core Analyzer 23275 | -2/Research | Spotted Executioner 23288 | -2/Research | Destroyed Executioner 23293 | -2/Research | Spotted Striker 23297 | -2/Research | Destroyed Striker 23300 | -2/Research | Spotted Executioner 23398 | -2/Research | Spotted B-90 Cyclops 23406 | -2/Research | Met up with Warlord 23430 | -2/Research | Found Exp. Melee Analysis Suite 23450 | -2/Research | Discovered new exit (range 12) 23505 | -2/Research | Build established: Wizard-Sprinter 23536 | -2/Research | Entered Testing 23554 | -2/Testing | Found Prototype Ballistic Gun 23554 | -2/Testing | Identified Hyp. Multirail 23635 | -2/Testing | Identified Matter Drive 23650 | -2/Testing | Found Prototype Hackware 23662 | -2/Testing | Identified Ghost Barrier 23683 | -2/Testing | Found Exp. Force Field 23722 | -2/Testing | Fabricated Dimensional Manipulator (x1) 23761 | -2/Testing | Fabricated Dimensional Manipulator (x1) 23800 | -2/Testing | Fabricated Dimensional Manipulator (x1) 23842 | -2/Testing | Local fabrication network quarantined 23884 | -2/Testing | Crushed by falling debris 23915 | -2/Testing | Lost 3 parts (3u) 24023 | -2/Testing | Discovered new exit (range 15) 24157 | -2/Testing | Identified Ragnarok Missile Launcher 24178 | -2/Testing | Build established: Wizard-Mutant 24199 | -2/Testing | Found Prototype Energy Gun 24199 | -2/Testing | Identified Hyp. EM Gauss Rifle 24217 | -2/Testing | Found Prototype Device 24217 | -2/Testing | Identified Exp. Hardlight Generator 24232 | -2/Testing | Repaired Mni. Fusion Reactor? 24286 | -2/Testing | First assault squad dispatched 24340 | -2/Testing | Scanned by Researcher 24562 | -2/Testing | Identified exit to Access 24563 | -2/Testing | Entered Access 24563 | -1/Access | Evolved 2 slots: Utility x2 24794 | -1/Access | Fabricated Dimensional Manipulator? 24855 | -1/Access | Fabricated Dimensional Manipulator (x1) 25006 | -1/Access | Destroyed 7 combat bots 25264 | -1/Access | Fabricated Femtoactuators? 25351 | -1/Access | Spotted B-99 Colossus 25360 | -1/Access | Spotted B-99 Colossus 25386 | -1/Access | Hacking Suite fried by hacking feedback 25402 | -1/Access | Found Gamma Bomb Array 25444 | -1/Access | Repaired Exp. Power Amplifier? 25447 | -1/Access | Fabricated Exp. Force Field? 25548 | -1/Access | Build established: Wizard-Sprinter 25586 | -1/Access | Discovered new exit (range 7) 25587 | -1/Access | Identified exit to Command 25588 | -1/Access | Entered Command 25667 | -1/Command | Found Antimissile System 25869 | -1/Command | First assault squad dispatched 25890 | -1/Command | Disengaged cave seal 25891 | -1/Command | Welcomed Warlord to Command 25900 | -1/Command | P-80 Master assimilated allied AX-VMG(s) 25939 | -1/Command | Disengaged cave seal 25939 | -1/Command | Derelicts emerged from the dark tunnel 26092 | -1/Command | Spotted M Guard 26092 | -1/Command | Spotted M Guard 26092 | -1/Command | Spotted Combat Programmer 26105 | -1/Command | Spotted Combat Programmer 26125 | -1/Command | Warlord commented on Warlord statues 26128 | -1/Command | Destroyed M Guard 26131 | -1/Command | Found Prototype Device 26136 | -1/Command | Found Prototype Reactor 26141 | -1/Command | All MAIN.C guards destroyed 26142 | -1/Command | Identified Zero-point Reactor 26172 | -1/Command | Identified AEGIS Remote Shield 26236 | -1/Command | Met MAIN.C 26238 | -1/Command | Warlord shut down involuntarily 26238 | -1/Command | 0b10 Conduit disabled 26257 | -1/Command | Destroyed MAIN.C Shell 26258 | -1/Command | MAIN.C activated Command garrisons 26285 | -1/Command | Found Zero-point Reactor 26287 | -1/Command | Destroyed MAIN.C 26326 | -1/Command | Found Femtoactuators 26328 | -1/Command | Found Prototype Device 26328 | -1/Command | Identified Beam Splitter 26331 | -1/Command | Found Spectral Analyzer 26338 | -1/Command | Found Zero-point Reactor 26478 | -1/Command | Discovered new exit (range 13) 26498 | -1/Command | Build established: Hacker-Sprinter 26626 | -1/Command | Spotted B-99 Colossus 26732 | -1/Command | Attacked by Warlord forces 26749 | -1/Command | Found Exp. Targeting Computer 26809 | -1/Command | Build established: Scavenger-Sprinter 27683 | -1/Command | Build established: Scavenger-Gladiator 28960 | -1/Command | Spotted B-99 Colossus 29164 | -1/Command | Build established: Scavenger-Sprinter 29237 | -1/Command | Found Prototype Device 29239 | -1/Command | Identified Exp. Focal Shield 29255 | -1/Command | Used Integrity Redistributor, redistributed integrity from core (-107) 29302 | -1/Command | Phase Generator disabled 29321 | -1/Command | Warped through subspace to slip node 29321 | -1/Command | Discovered new exit (range 4) 29327 | -1/Command | Entered Access_0 29328 | -1/Access_0 | Met Architect 29348 | -1/Access_0 | Architect warped through subspace 29368 | -1/Access_0 | Destroyed A8 29413 | -1/Access_0 | Architect warped through subspace 29425 | -1/Access_0 | Found Prototype Protection 29425 | -1/Access_0 | Identified Exp. Powered Armor 29427 | -1/Access_0 | Found Exp. Powered Armor 29473 | -1/Access_0 | Architect warped through subspace 29483 | -1/Access_0 | Found Prototype Device 29484 | -1/Access_0 | Identified Exp. Weapon Cycler 29487 | -1/Access_0 | Found Exp. Phase Shifter 29511 | -1/Access_0 | Found Exp. Powered Armor 29513 | -1/Access_0 | Found Exp. Powered Armor 29539 | -1/Access_0 | Architect warped through subspace 29560 | -1/Access_0 | A6 warped into view 29574 | -1/Access_0 | Destroyed A6 29591 | -1/Access_0 | Architect warped through subspace 29636 | -1/Access_0 | Architect warped through subspace 29679 | -1/Access_0 | Architect warped through subspace 29699 | -1/Access_0 | A5 warped into view 29713 | -1/Access_0 | Destroyed A5 29716 | -1/Access_0 | Subspace Access Node disabled 29733 | -1/Access_0 | Architect warped through subspace 29765 | -1/Access_0 | Architect warped through subspace 29782 | -1/Access_0 | Found Prototype Protection 29782 | -1/Access_0 | Identified Centrium Linked Plating 29797 | -1/Access_0 | Architect warped through subspace 29799 | -1/Access_0 | Found Centrium Linked Plating 29829 | -1/Access_0 | Architect warped through subspace 29879 | -1/Access_0 | Architect warped through subspace 29882 | -1/Access_0 | Found Exp. Phase Shifter 29884 | -1/Access_0 | Found Exp. Phase Shifter 29907 | -1/Access_0 | Found Hpw. Transdimensional Reconstructor 29932 | -1/Access_0 | Architect warped through subspace 29961 | -1/Access_0 | A4 warped into view 29994 | -1/Access_0 | Destroyed A4 30030 | -1/Access_0 | Found Exp. Phase Shifter 30052 | -1/Access_0 | Architect warped through subspace 30081 | -1/Access_0 | Architect warped through subspace 30107 | -1/Access_0 | Found Exp. Powered Armor 30150 | -1/Access_0 | Core integrity fell below 50% 30162 | -1/Access_0 | Architect warped through subspace 30208 | -1/Access_0 | Subspace Access Node disabled 30215 | -1/Access_0 | Architect warped through subspace 30283 | -1/Access_0 | Found Integrated Dissipator 30283 | -1/Access_0 | Installed Integrated Dissipator, increased core heat dissipation (+20) 30296 | -1/Access_0 | Architect warped through subspace 30338 | -1/Access_0 | Architect warped through subspace 30365 | -1/Access_0 | Subspace Access Node disabled 30391 | -1/Access_0 | Architect warped through subspace 30395 | -1/Access_0 | A3 warped into view 30416 | -1/Access_0 | Destroyed A3 30453 | -1/Access_0 | Architect warped through subspace 30480 | -1/Access_0 | Architect warped through subspace 30505 | -1/Access_0 | Subspace Access Node disabled 30636 | -1/Access_0 | Destroyed A2 30638 | -1/Access_0 | Extracted Singularity Gate Test 138-C access codes from A2's data core 30671 | -1/Access_0 | Found Exp. Powered Armor 30900 | -1/Access_0 | Found Sigix Corpse 30928 | -1/Access_0 | Started Test 138-B, establishing a local singularity 30928 | -1/Access_0 | Started Test 138-C, cascade imminent 30928 | *** | Destroyed Tau Ceti IV! Last Messages --------------- 30900_ Acquired Sigix Corpse. 30928_ Connecting with Gate Controls... >>Gate Test 138-A Running Singularity Gate diagnostics... All systems nominal. >>Gate Test 138-B Preparing Singularity Gate activation... Stable singularity established. 30928_ Connecting with Gate Controls... >>Gate Test 138-C Initiating Test 138-C... Warning: Experimental formulas incomplete. Potential effects include instability. Repeat command to confirm test. >>Gate Test 138-C Initiating Test 138-C... Applying incomplete calculations.... INSTABILITY DETECTED, CASCADE IMMINENT. [Achievement: Stardust] [Achievement: Inspector Gadget] Map ----- +----------------------------------------------------+ | ?????????????????# ## #??????????????????? | | ?????????????????# #### #??###?????????????? | | ?????????????????# #??# #### ###???????????? | | ?????????????????# #??# #???????????? | | ?????????????????# #??# #???????????? | | ?????????????????# #??##### #### #?????? | | ?????????????????# #???### #?????? | | ?????????????????# #???#%=! ## #?????? | | ?????????????????# #???# ! "# #######?????? | | ?????????????????# #???#! #????????? | | ?????????????????# #???### #????????? | | ????????????###### ####### "# #????????? | | ????????????#""""" """""## ### #????????? | | ????????????##"""" """"### ##?# #????????? | | ????????????##" "#### #??# #????????? | | ????????????#"" ""#?# ##??# #????????? | | ????????????#"" ""#? #???# #????????? | | ????????????##" "### ##???# #????????? | | ?????????????#" "#?##?????# #????????? | | ?????????????#" "#????????# #????????? | | ?????????????#" "#?????#### #????????? | | ????????????##" "##????# #????????? | | ????????????#"" ""#????# ###????????? | | ????????????#"" ""#????# #??????????? | | ????????????##" "##????# #??????????? | | ????????????##"""" @A""##????# #??????????? | | ????????????#""""" """""#????# #??????????? | | ????????????###### ######????# ######?????? | | ?????????????????# ##????????# #?????? | | ?????????????????# ##??????## ##?###?? | | ?????????????????# ##?????# ####"### | | ?????????????????# ####?## ##"" """ | | ?????????????????# ### ### ##" | | ?????????????????## ### ## | | ?????????????????## ### | | ?????????????????# ## #### #########" ! | | ?????????????????# ## #??# #???????#"" """ | | ?????????????????## # ##?# ####????###"### | | ??????????????????## ### # ##??##?###?? | | ???????????????????# ### #?????? | | ???????????????????# ### #?????? | | ???????????????????# ### #### #?????? | | ???????????????????# #?????? | | ?????????????????### ##?????? | | ????????????????## ####### ## #??????? | | ???????????????## ## ## #??????? | | ???????????????# # ### ##??????? | | ???????????????#### #?### ###???????? | | ??????????????????### #???# #?????????? | | ????????????????????# # ## #???# #?????????? | +----------------------------------------------------+ Best States ------------- Heat Dissipation 152 Coolant Potential 120 Energy Generation 104 Energy Capacity 1490 Matter Stores 300 Matter Capacity 300 Sight Range 24 Robot Scan Range 30 Terrain Scan Density 10 Jamming Range 16 Power Amplification 40 Additional Mass Support 75 Armor Coverage 1000 Resistance: KI 30 Resistance: TH 50 Resistance: EX 15 Resistance: EM 15 Resistance: I 15 Resistance: S 15 Resistance: P 15 Core Shielding 20 Power Shielding 90 Propulsion Shielding 66 Utility Shielding 66 Weapon Shielding 66 Point Defense Rating 480 Melee Speed Boost 50 Phase Shifting 20 Evasion (%) 98 Targeting Accuracy 12 Melee Accuracy 46 Target Analysis 8 Core Analysis 15 Armor Integrity Analysis 66 Recoil Reduction 2 Salvage Targeting 12 Offensive Hacking 69 Defensive Hacking 65 Item Schematics ----------------- Adv. Signal Interpreter | -7/Factory | Hacked Med. Storage Unit | -7/Factory | Hacked Biomechanical Wings | -7/Factory | Hacked Gravity Neutralizing Apparatus | -7/Factory | Scanalyzed Riot Gun | -7/Zion | Free Barrage Gun | -7/Zion | Free Ripper | -7/Zion | Free Powered Armor | -6/Factory | Hacked Combat Drone Bay | -6/Data Miner | Free Lgt. Regenerative Plating | -6/Data Miner | Free Cmb. Gravmag System | -6/Data Miner | Free Triangulator | -6/Data Miner | Free Tactical Coordination Suite | -6/Data Miner | Free Plasma Sword | -6/Data Miner | Free Exp. Cesium-ion Thruster | -5/Factory | Hacked Exp. Signal Interpreter | -5/Factory | Hacked Adv. Hacking Suite | -5/Factory | Hacked Com. HERF Cannon | -5/Factory | Hacked Mni. Fusion Reactor | -4/Factory | Hacked Inertial Stasis Machine | -4/Factory | Hacked Exp. Field Recycling Unit | -4/Factory | Hacked Assault Drone Bay | -4/Zhirov | Free Exp. Heat Sink | -4/Zhirov | Free Exp. Optical Array | -4/Zhirov | Free Imp. Arc Thrower | -4/Zhirov | Free Exp. Hacking Suite | -3/Research | Hacked Exp. Propulsion Shielding | -3/Research | Hacked Quantum Shading Machine | -3/Research | Hacked Exp. Melee Analysis Suite | -3/Quarantine | Hacked Tiamat Missile Launcher | -3/Quarantine | Scanalyzed Dimensional Manipulator | -3/Section 7 | Hacked Lrg. Storage Unit | -3/Section 7 | Hacked Femtoactuators | -2/Research | Hacked Exp. Force Field | -2/Testing | Hacked Imp. Q-thruster | -2/Testing | Scanalyzed Robot Schematics ------------------ S-27 Virus | -6/Data Miner | Free G-50 Soldier | -6/Data Miner | Free G-67 Veteran | -6/Data Miner | Free L-41 Fighter | -6/Data Miner | Free P-70 Sage | -6/Data Miner | Free I-36 Angel | -6/Data Miner | Free Fabricated ------------ Adv. Signal Interpreter | x2 | -7/Factory Biomechanical Wings | x1 | -7/Factory Biomechanical Wings | x1 | -7/Factory Gravity Neutralizing Apparatus | x1 | -6/Factory Powered Armor | x2 | -6/Factory Gravity Neutralizing Apparatus | x1 | -6/Factory Exp. Cesium-ion Thruster | x1 | -5/Factory Exp. Cesium-ion Thruster | x1 | -5/Factory Exp. Signal Interpreter | x1 | -5/Factory Exp. Cesium-ion Thruster | x1 | -5/Factory Adv. Hacking Suite | x1 | -5/Factory Adv. Hacking Suite | x1 | -4/Factory Adv. Hacking Suite | x1 | -4/Factory Mni. Fusion Reactor | x1 | -4/Factory Inertial Stasis Machine | x1 | -3/Research Dimensional Manipulator | x1 | -2/Testing Dimensional Manipulator | x1 | -2/Testing Dimensional Manipulator | x1 | -2/Testing Dimensional Manipulator | x1 | -1/Access Dimensional Manipulator | x1 | -1/Access Femtoactuators | x1 | -1/Access Exp. Force Field | x1 | -1/Access Alien Tech Used ----------------- Integrated Dissipator Dimensional Node Initializer Sigix Broadsword Transdimensional Reconstructor Core Membrane Integrated Heat Negator Subatomic Replicator Integrated Singularity Reactor Integrated Reactor Core Regenerator Sigix Quantum Sheargun LRC Energy Well LRC Boosters Matter Drive Integrity Redistributor High-powered Transdimensional Reconstructor Achievements -------------- Inspector Gadget Stardust Challenges ------------ None Game ------ Seed MappingAntigravNullifier Manual? 0 Play Time 11:58:20 Cumulative 1030.4 hours Start 2021.01.02 @ 16:01:57 End 2021.01.03 @ 21:40:46 Sessions 3 Manual Loads 0 Difficulty Rogue Special Mode None Game No. 339 Rogue 339 Adventurer 0 Explorer 0 Win Type 5 Total 55 Types 13/16/9/3/1/2/9/1/1 Lore% 98 Gallery% 96 Achievement% 87 Wizard Run 0 Options --------- ASCII 0 Keyboard 0 Movement Numpad Keybinds 0 Fullscreen 2 Font 24/Smallcaps Map View 76x50 Tactical HUD 1 Map Filters NONE Filters NONE Steam 1 RUN: 21c753aa-a814-453e-beb2-369cf187bcde